Workbook

Sheet Sheet1
A1: List of hyperDMRs in HCC. | G1: List of genes with hypermethylated promoters in HCC. | N1: List of hypoDMRs in HCC. | T1: List of PMDs in HCC.
A2: chr | B2: start | C2: end | D2: size | E2: RegionID | G2: GeneName | H2: chr | I2: start | J2: end | K2: RegionID | L2: DistanceToTSS | N2: chr | O2: start | P2: end | Q2: size | R2: RegionID | T2: chr | U2: start | V2: end | W2: size | X2: RegionID
A3: chr1 | B3: 1032501 | C3: 1033000 | D3: 500 | E3: Hyper30p_q01_min3diffsCpG_1000win_merged1 | G3: PRKCZ | H3: chr1 | I3: 2132502 | J3: 2133000 | K3: Hyper30p_q01_min3diffsCpG_1000win_merged1 | L3: -638 | N3: chr1 | O3: 862001 | P3: 862500 | Q3: 500 | R3: Hyp30p_q01_min3diffsCpG_1000win_merged1 | T3: chr1 | U3: 26964 | V3: 94019 | W3: =V3-U3+1 -> 67056 | X3: All_HCC_PMD_1
A4: chr1 | B4: 2132501 | C4: 2133000 | D4: 500 | E4: Hyper30p_q01_min3diffsCpG_1000win_merged2 | G4: TP73-AS1 | H4: chr1 | I4: 3746502 | J4: 3747000 | K4: Hyper30p_q01_min3diffsCpG_1000win_merged4 | L4: 0 | N4: chr1 | O4: 867001 | P4: 867500 | Q4: 500 | R4: Hyp30p_q01_min3diffsCpG_1000win_merged2 | T4: chr1 | U4: 856494 | V4: 944786 | W4: =V4-U4+1 -> 88293 | X4: All_HCC_PMD_2
A5: chr1 | B5: 2291001 | C5: 2291500 | D5: 500 | E5: Hyper30p_q01_min3diffsCpG_1000win_merged3 | G5: MTHFR | H5: chr1 | I5: 11803002 | J5: 11804000 | K5: Hyper30p_q01_min3diffsCpG_1000win_merged7 | L5: 0 | N5: chr1 | O5: 895001 | P5: 895500 | Q5: 500 | R5: Hyp30p_q01_min3diffsCpG_1000win_merged3 | T5: chr1 | U5: 1156148 | V5: 1214416 | W5: 58269 | X5: All_HCC_PMD_3
A6: chr1 | B6: 2301001 | C6: 2301500 | D6: 500 | E6: Hyper30p_q01_min3diffsCpG_1000win_merged4 | G6: ANO7L1 | H6: chr1 | I6: 16227502 | J6: 16228000 | K6: Hyper30p_q01_min3diffsCpG_1000win_merged10 | L6: 27 | N6: chr1 | O6: 899001 | P6: 900000 | Q6: 1000 | R6: Hyp30p_q01_min3diffsCpG_1000win_merged4 | T6: chr1 | U6: 1949996 | V6: 2053257 | W6: 103262 | X6: All_HCC_PMD_4
A7: chr1 | B7: 3746501 | C7: 3747000 | D7: 500 | E7: Hyper30p_q01_min3diffsCpG_1000win_merged5 | G7: EIF1AXP1 | H7: chr1 | I7: 16686002 | J7: 16686500 | K7: Hyper30p_q01_min3diffsCpG_1000win_merged12 | L7: 0 | N7: chr1 | O7: 901001 | P7: 902000 | Q7: 1000 | R7: Hyp30p_q01_min3diffsCpG_1000win_merged5 | T7: chr1 | U7: 2410607 | V7: 2507246 | W7: 96640 | X7: All_HCC_PMD_5
A8: chr1 | B8: 8395001 | C8: 8395500 | D8: 500 | E8: Hyper30p_q01_min3diffsCpG_1000win_merged6 | G8: ENSG00000228549 | H8: chr1 | I8: 16872502 | J8: 16873000 | K8: Hyper30p_q01_min3diffsCpG_1000win_merged13 | L8: 0 | N8: chr1 | O8: 981501 | P8: 982000 | Q8: 500 | R8: Hyp30p_q01_min3diffsCpG_1000win_merged6 | T8: chr1 | U8: 2592221 | V8: 2702646 | W8: 110426 | X8: All_HCC_PMD_6
A9: chr1 | B9: 10530001 | C9: 10531000 | D9: 1000 | E9: Hyper30p_q01_min3diffsCpG_1000win_merged7 | G9: ECE1 | H9: chr1 | I9: 21289502 | J9: 21290000 | K9: Hyper30p_q01_min3diffsCpG_1000win_merged14 | L9: 257 | N9: chr1 | O9: 986001 | P9: 986500 | Q9: 500 | R9: Hyp30p_q01_min3diffsCpG_1000win_merged7 | T9: chr1 | U9: 2746358 | V9: 3472542 | W9: 726185 | X9: All_HCC_PMD_7
A10: chr1 | B10: 11803001 | C10: 11804000 | D10: 1000 | E10: Hyper30p_q01_min3diffsCpG_1000win_merged8 | G10: PTP4A2 | H10: chr1 | I10: 31944502 | J10: 31945000 | K10: Hyper30p_q01_min3diffsCpG_1000win_merged16 | L10: 0 | N10: chr1 | O10: 989501 | P10: 990000 | Q10: 500 | R10: Hyp30p_q01_min3diffsCpG_1000win_merged8 | T10: chr1 | U10: 3480034 | V10: 3627747 | W10: 147714 | X10: All_HCC_PMD_8
A11: chr1 | B11: 15703501 | C11: 15704000 | D11: 500 | E11: Hyper30p_q01_min3diffsCpG_1000win_merged9 | G11: KIAA1522 | H11: chr1 | I11: 32753502 | J11: 32755000 | K11: Hyper30p_q01_min3diffsCpG_1000win_merged17 | L11: 0 | N11: chr1 | O11: 1066001 | P11: 1066500 | Q11: 500 | R11: Hyp30p_q01_min3diffsCpG_1000win_merged9 | T11: chr1 | U11: 3909136 | V11: 6184653 | W11: 2275518 | X11: All_HCC_PMD_9
A12: chr1 | B12: 15949501 | C12: 15950000 | D12: 500 | E12: Hyper30p_q01_min3diffsCpG_1000win_merged10 | G12: SH3D21 | H12: chr1 | I12: 36321502 | J12: 36322000 | K12: Hyper30p_q01_min3diffsCpG_1000win_merged19 | L12: 898 | N12: chr1 | O12: 1118501 | P12: 1119000 | Q12: 500 | R12: Hyp30p_q01_min3diffsCpG_1000win_merged10 | T12: chr1 | U12: 6699194 | V12: 6772986 | W12: 73793 | X12: All_HCC_PMD_10
A13: chr1 | B13: 16227501 | C13: 16228000 | D13: 500 | E13: Hyper30p_q01_min3diffsCpG_1000win_merged11 | G13: TMEM269 | H13: chr1 | I13: 42785502 | J13: 42786000 | K13: Hyper30p_q01_min3diffsCpG_1000win_merged22 | L13: 495 | N13: chr1 | O13: 1172001 | P13: 1173500 | Q13: 1500 | R13: Hyp30p_q01_min3diffsCpG_1000win_merged11 | T13: chr1 | U13: 6962315 | V13: 7098693 | W13: 136379 | X13: All_HCC_PMD_11
A14: chr1 | B14: 16647501 | C14: 16648000 | D14: 500 | E14: Hyper30p_q01_min3diffsCpG_1000win_merged12 | G14: FOXD2-AS1 | H14: chr1 | I14: 47433502 | J14: 47435000 | K14: Hyper30p_q01_min3diffsCpG_1000win_merged23 | L14: 0 | N14: chr1 | O14: 1174501 | P14: 1175000 | Q14: 500 | R14: Hyp30p_q01_min3diffsCpG_1000win_merged12 | T14: chr1 | U14: 7161498 | V14: 7570475 | W14: 408978 | X14: All_HCC_PMD_12
A15: chr1 | B15: 16686001 | C15: 16686500 | D15: 500 | E15: Hyper30p_q01_min3diffsCpG_1000win_merged13 | G15: TACSTD2 | H15: chr1 | I15: 58576002 | J15: 58576500 | K15: Hyper30p_q01_min3diffsCpG_1000win_merged26 | L15: 752 | N15: chr1 | O15: 1177501 | P15: 1178500 | Q15: 1000 | R15: Hyp30p_q01_min3diffsCpG_1000win_merged13 | T15: chr1 | U15: 7577138 | V15: 7774075 | W15: 196938 | X15: All_HCC_PMD_13
A16: chr1 | B16: 16872501 | C16: 16873000 | D16: 500 | E16: Hyper30p_q01_min3diffsCpG_1000win_merged14 | G16: FOXD3-AS1 | H16: chr1 | I16: 63323502 | J16: 63325000 | K16: Hyper30p_q01_min3diffsCpG_1000win_merged28 | L16: 0 | N16: chr1 | O16: 1184001 | P16: 1184500 | Q16: 500 | R16: Hyp30p_q01_min3diffsCpG_1000win_merged14 | T16: chr1 | U16: 7856081 | V16: 7955775 | W16: 99695 | X16: All_HCC_PMD_14
A17: chr1 | B17: 21289501 | C17: 21290000 | D17: 500 | E17: Hyper30p_q01_min3diffsCpG_1000win_merged15 | G17: LINC01359 | H17: chr1 | I17: 65001002 | J17: 65001500 | K17: Hyper30p_q01_min3diffsCpG_1000win_merged30 | L17: 931 | N17: chr1 | O17: 1193001 | P17: 1193500 | Q17: 500 | R17: Hyp30p_q01_min3diffsCpG_1000win_merged15 | T17: chr1 | U17: 9622523 | V17: 9844698 | W17: 222176 | X17: All_HCC_PMD_15
A18: chr1 | B18: 25567001 | C18: 25567500 | D18: 500 | E18: Hyper30p_q01_min3diffsCpG_1000win_merged16 | G18: ENSG00000272691 | H18: chr1 | I18: 85579502 | J18: 85580000 | K18: Hyper30p_q01_min3diffsCpG_1000win_merged31 | L18: -760 | N18: chr1 | O18: 1196001 | P18: 1196500 | Q18: 500 | R18: Hyp30p_q01_min3diffsCpG_1000win_merged16 | T18: chr1 | U18: 10731030 | V18: 10982104 | W18: 251075 | X18: All_HCC_PMD_16
A19: chr1 | B19: 31944501 | C19: 31945000 | D19: 500 | E19: Hyper30p_q01_min3diffsCpG_1000win_merged17 | G19: LRRC8C-DT | H19: chr1 | I19: 89632002 | J19: 89632500 | K19: Hyper30p_q01_min3diffsCpG_1000win_merged33 | L19: 0 | N19: chr1 | O19: 1209501 | P19: 1210000 | Q19: 500 | R19: Hyp30p_q01_min3diffsCpG_1000win_merged17 | T19: chr1 | U19: 11301592 | V19: 11739688 | W19: 438097 | X19: All_HCC_PMD_17
A20: chr1 | B20: 32753501 | C20: 32755000 | D20: 1500 | E20: Hyper30p_q01_min3diffsCpG_1000win_merged18 | G20: BARHL2 | H20: chr1 | I20: 90717502 | J20: 90718000 | K20: Hyper30p_q01_min3diffsCpG_1000win_merged34 | L20: -200 | N20: chr1 | O20: 1584501 | P20: 1585000 | Q20: 500 | R20: Hyp30p_q01_min3diffsCpG_1000win_merged18 | T20: chr1 | U20: 11849648 | V20: 11901408 | W20: 51761 | X20: All_HCC_PMD_18
A21: chr1 | B21: 33296001 | C21: 33296500 | D21: 500 | E21: Hyper30p_q01_min3diffsCpG_1000win_merged19 | G21: LINC02609 | H21: chr1 | I21: 90834502 | J21: 90836500 | K21: Hyper30p_q01_min3diffsCpG_1000win_merged36 | L21: 0 | N21: chr1 | O21: 1591001 | P21: 1591500 | Q21: 500 | R21: Hyp30p_q01_min3diffsCpG_1000win_merged19 | T21: chr1 | U21: 12038733 | V21: 12125315 | W21: 86583 | X21: All_HCC_PMD_19
A22: chr1 | B22: 36321501 | C22: 36322000 | D22: 500 | E22: Hyper30p_q01_min3diffsCpG_1000win_merged20 | G22: HENMT1 | H22: chr1 | I22: 108661002 | J22: 108661500 | K22: Hyper30p_q01_min3diffsCpG_1000win_merged38 | L22: 0 | N22: chr1 | O22: 1958501 | P22: 1959000 | Q22: 500 | R22: Hyp30p_q01_min3diffsCpG_1000win_merged20 | T22: chr1 | U22: 12628340 | V22: 12950222 | W22: 321883 | X22: All_HCC_PMD_20
A23: chr1 | B23: 37995501 | C23: 37996500 | D23: 1000 | E23: Hyper30p_q01_min3diffsCpG_1000win_merged21 | G23: GSTM2 | H23: chr1 | I23: 109667502 | J23: 109668500 | K23: Hyper30p_q01_min3diffsCpG_1000win_merged39 | L23: 0 | N23: chr1 | O23: 1961001 | P23: 1961500 | Q23: 500 | R23: Hyp30p_q01_min3diffsCpG_1000win_merged21 | T23: chr1 | U23: 13004481 | V23: 13752249 | W23: 747769 | X23: All_HCC_PMD_21
A24: chr1 | B24: 40884001 | C24: 40884500 | D24: 500 | E24: Hyper30p_q01_min3diffsCpG_1000win_merged22 | G24: TBX15 | H24: chr1 | I24: 118986002 | J24: 118990500 | K24: Hyper30p_q01_min3diffsCpG_1000win_merged43 | L24: 0 | N24: chr1 | O24: 1969501 | P24: 1970000 | Q24: 500 | R24: Hyp30p_q01_min3diffsCpG_1000win_merged22 | T24: chr1 | U24: 13823666 | V24: 15411125 | W24: 1587460 | X24: All_HCC_PMD_22
A25: chr1 | B25: 42785501 | C25: 42786000 | D25: 500 | E25: Hyper30p_q01_min3diffsCpG_1000win_merged23 | G25: ENSG00000226172 | H25: chr1 | I25: 119000002 | J25: 119000500 | K25: Hyper30p_q01_min3diffsCpG_1000win_merged46 | L25: 892 | N25: chr1 | O25: 1972001 | P25: 1973500 | Q25: 1500 | R25: Hyp30p_q01_min3diffsCpG_1000win_merged23 | T25: chr1 | U25: 16012173 | V25: 16114099 | W25: 101927 | X25: All_HCC_PMD_23
A26: chr1 | B26: 47433501 | C26: 47435000 | D26: 1500 | E26: Hyper30p_q01_min3diffsCpG_1000win_merged24 | G26: ENSG00000274642 | H26: chr1 | I26: 120197002 | J26: 120197500 | K26: Hyper30p_q01_min3diffsCpG_1000win_merged49 | L26: 0 | N26: chr1 | O26: 1975001 | P26: 1977500 | Q26: 2500 | R26: Hyp30p_q01_min3diffsCpG_1000win_merged24 | T26: chr1 | U26: 17082520 | V26: 17405017 | W26: 322498 | X26: All_HCC_PMD_24
A27: chr1 | B27: 47443501 | C27: 47446500 | D27: 3000 | E27: Hyper30p_q01_min3diffsCpG_1000win_merged25 | G27: H3P4 | H27: chr1 | I27: 121118002 | J27: 121119000 | K27: Hyper30p_q01_min3diffsCpG_1000win_merged50 | L27: 0 | N27: chr1 | O27: 1987501 | P27: 1988000 | Q27: 500 | R27: Hyp30p_q01_min3diffsCpG_1000win_merged25 | T27: chr1 | U27: 17702494 | V27: 18868958 | W27: 1166465 | X27: All_HCC_PMD_25
A28: chr1 | B28: 47533001 | C28: 47533500 | D28: 500 | E28: Hyper30p_q01_min3diffsCpG_1000win_merged26 | G28: RNU1-151P | H28: chr1 | I28: 147078002 | J28: 147079000 | K28: Hyper30p_q01_min3diffsCpG_1000win_merged53 | L28: -746 | N28: chr1 | O28: 1992001 | P28: 1992500 | Q28: 500 | R28: Hyp30p_q01_min3diffsCpG_1000win_merged26 | T28: chr1 | U28: 19491961 | V28: 19586078 | W28: 94118 | X28: All_HCC_PMD_26
A29: chr1 | B29: 58576001 | C29: 58576500 | D29: 500 | E29: Hyper30p_q01_min3diffsCpG_1000win_merged27 | G29: RNU1-151P | H29: chr1 | I29: 147080002 | J29: 147080500 | K29: Hyper30p_q01_min3diffsCpG_1000win_merged54 | L29: 256 | N29: chr1 | O29: 1993501 | P29: 1994000 | Q29: 500 | R29: Hyp30p_q01_min3diffsCpG_1000win_merged27 | T29: chr1 | U29: 19917475 | V29: 20155500 | W29: 238026 | X29: All_HCC_PMD_27
A30: chr1 | B30: 63319501 | C30: 63320000 | D30: 500 | E30: Hyper30p_q01_min3diffsCpG_1000win_merged28 | G30: RNVU1-1 | H30: chr1 | I30: 148361502 | J30: 148362000 | K30: Hyper30p_q01_min3diffsCpG_1000win_merged56 | L30: 533 | N30: chr1 | O30: 1995501 | P30: 1996000 | Q30: 500 | R30: Hyp30p_q01_min3diffsCpG_1000win_merged28 | T30: chr1 | U30: 20193686 | V30: 20496414 | W30: 302729 | X30: All_HCC_PMD_28
A31: chr1 | B31: 63323501 | C31: 63325000 | D31: 1500 | E31: Hyper30p_q01_min3diffsCpG_1000win_merged29 | G31: ENSG00000261168 | H31: chr1 | I31: 151131002 | J31: 151132000 | K31: Hyper30p_q01_min3diffsCpG_1000win_merged57 | L31: 0 | N31: chr1 | O31: 2000001 | P31: 2000500 | Q31: 500 | R31: Hyp30p_q01_min3diffsCpG_1000win_merged29 | T31: chr1 | U31: 20506964 | V31: 20576947 | W31: 69984 | X31: All_HCC_PMD_29
A32: chr1 | B32: 64856501 | C32: 64857000 | D32: 500 | E32: Hyper30p_q01_min3diffsCpG_1000win_merged30 | G32: C2CD4D | H32: chr1 | I32: 151839002 | J32: 151840500 | K32: Hyper30p_q01_min3diffsCpG_1000win_merged58 | L32: 57 | N32: chr1 | O32: 2008001 | P32: 2011500 | Q32: 3500 | R32: Hyp30p_q01_min3diffsCpG_1000win_merged30 | T32: chr1 | U32: 20671392 | V32: 20734429 | W32: 63038 | X32: All_HCC_PMD_30
A33: chr1 | B33: 65001001 | C33: 65001500 | D33: 500 | E33: Hyper30p_q01_min3diffsCpG_1000win_merged31 | G33: TDRD10 | H33: chr1 | I33: 154502502 | J33: 154503000 | K33: Hyper30p_q01_min3diffsCpG_1000win_merged60 | L33: 0 | N33: chr1 | O33: 2012501 | P33: 2015500 | Q33: 3000 | R33: Hyp30p_q01_min3diffsCpG_1000win_merged31 | T33: chr1 | U33: 21368266 | V33: 21538454 | W33: 170189 | X33: All_HCC_PMD_31
A34: chr1 | B34: 85579501 | C34: 85580000 | D34: 500 | E34: Hyper30p_q01_min3diffsCpG_1000win_merged32 | G34: RUSC1 | H34: chr1 | I34: 155320502 | J34: 155321000 | K34: Hyper30p_q01_min3diffsCpG_1000win_merged61 | L34: 0 | N34: chr1 | O34: 2016501 | P34: 2017500 | Q34: 1000 | R34: Hyp30p_q01_min3diffsCpG_1000win_merged32 | T34: chr1 | U34: 22126914 | V34: 22444532 | W34: 317619 | X34: All_HCC_PMD_32
A35: chr1 | B35: 87151501 | C35: 87152500 | D35: 1000 | E35: Hyper30p_q01_min3diffsCpG_1000win_merged33 | G35: HSPA6 | H35: chr1 | I35: 161525002 | J35: 161525500 | K35: Hyper30p_q01_min3diffsCpG_1000win_merged65 | L35: 462 | N35: chr1 | O35: 2021001 | P35: 2021500 | Q35: 500 | R35: Hyp30p_q01_min3diffsCpG_1000win_merged33 | T35: chr1 | U35: 22539027 | V35: 23013107 | W35: 474081 | X35: All_HCC_PMD_33
A36: chr1 | B36: 89632001 | C36: 89632500 | D36: 500 | E36: Hyper30p_q01_min3diffsCpG_1000win_merged34 | G36: DNM3 | H36: chr1 | I36: 171841002 | J36: 171841500 | K36: Hyper30p_q01_min3diffsCpG_1000win_merged67 | L36: 0 | N36: chr1 | O36: 2028501 | P36: 2030000 | Q36: 1500 | R36: Hyp30p_q01_min3diffsCpG_1000win_merged34 | T36: chr1 | U36: 23175559 | V36: 23245893 | W36: 70335 | X36: All_HCC_PMD_34
A37: chr1 | B37: 90717501 | C37: 90718000 | D37: 500 | E37: Hyper30p_q01_min3diffsCpG_1000win_merged35 | G37: ANKRD45 | H37: chr1 | I37: 173669502 | J37: 173670000 | K37: Hyper30p_q01_min3diffsCpG_1000win_merged68 | L37: 0 | N37: chr1 | O37: 2031001 | P37: 2031500 | Q37: 500 | R37: Hyp30p_q01_min3diffsCpG_1000win_merged35 | T37: chr1 | U37: 23546602 | V37: 23684864 | W37: 138263 | X37: All_HCC_PMD_35
A38: chr1 | B38: 90723501 | C38: 90724000 | D38: 500 | E38: Hyper30p_q01_min3diffsCpG_1000win_merged36 | G38: NMNAT2 | H38: chr1 | I38: 183416502 | J38: 183417500 | K38: Hyper30p_q01_min3diffsCpG_1000win_merged70 | L38: 880 | N38: chr1 | O38: 2034501 | P38: 2035000 | Q38: 500 | R38: Hyp30p_q01_min3diffsCpG_1000win_merged36 | T38: chr1 | U38: 24894098 | V38: 25155546 | W38: 261449 | X38: All_HCC_PMD_36
A39: chr1 | B39: 90834501 | C39: 90836500 | D39: 2000 | E39: Hyper30p_q01_min3diffsCpG_1000win_merged37 | G39: LHX9 | H39: chr1 | I39: 197913002 | J39: 197914000 | K39: Hyper30p_q01_min3diffsCpG_1000win_merged71 | L39: 497 | N39: chr1 | O39: 2036001 | P39: 2037000 | Q39: 1000 | R39: Hyp30p_q01_min3diffsCpG_1000win_merged37 | T39: chr1 | U39: 26016228 | V39: 26114676 | W39: 98449 | X39: All_HCC_PMD_37
A40: chr1 | B40: 92481001 | C40: 92481500 | D40: 500 | E40: Hyper30p_q01_min3diffsCpG_1000win_merged38 | G40: PLEKHA6 | H40: chr1 | I40: 204359502 | J40: 204360500 | K40: Hyper30p_q01_min3diffsCpG_1000win_merged77 | L40: 0 | N40: chr1 | O40: 2038001 | P40: 2040000 | Q40: 2000 | R40: Hyp30p_q01_min3diffsCpG_1000win_merged38 | T40: chr1 | U40: 26363623 | V40: 26428091 | W40: 64469 | X40: All_HCC_PMD_38
A41: chr1 | B41: 108661001 | C41: 108661500 | D41: 500 | E41: Hyper30p_q01_min3diffsCpG_1000win_merged39 | G41: RASSF5 | H41: chr1 | I41: 206558002 | J41: 206558500 | K41: Hyper30p_q01_min3diffsCpG_1000win_merged78 | L41: 441 | N41: chr1 | O41: 2041001 | P41: 2041500 | Q41: 500 | R41: Hyp30p_q01_min3diffsCpG_1000win_merged39 | T41: chr1 | U41: 27021595 | V41: 27094454 | W41: 72860 | X41: All_HCC_PMD_39
A42: chr1 | B42: 109667501 | C42: 109668500 | D42: 1000 | E42: Hyper30p_q01_min3diffsCpG_1000win_merged40 | G42: PROX1-AS1 | H42: chr1 | I42: 213979502 | J42: 213980000 | K42: Hyper30p_q01_min3diffsCpG_1000win_merged80 | L42: -81 | N42: chr1 | O42: 2342001 | P42: 2342500 | Q42: 500 | R42: Hyp30p_q01_min3diffsCpG_1000win_merged40 | T42: chr1 | U42: 28779152 | V42: 28882361 | W42: 103210 | X42: All_HCC_PMD_40
A43: chr1 | B43: 110067501 | C43: 110069000 | D43: 1500 | E43: Hyper30p_q01_min3diffsCpG_1000win_merged41 | G43: ENSG00000289142 | H43: chr1 | I43: 220876502 | J43: 220878500 | K43: Hyper30p_q01_min3diffsCpG_1000win_merged81 | L43: 701 | N43: chr1 | O43: 2347501 | P43: 2348000 | Q43: 500 | R43: Hyp30p_q01_min3diffsCpG_1000win_merged41 | T43: chr1 | U43: 29349280 | V43: 29422266 | W43: 72987 | X43: All_HCC_PMD_41
A44: chr1 | B44: 118979501 | C44: 118980500 | D44: 1000 | E44: Hyper30p_q01_min3diffsCpG_1000win_merged42 | G44: DEGS1 | H44: chr1 | I44: 224175502 | J44: 224176000 | K44: Hyper30p_q01_min3diffsCpG_1000win_merged82 | L44: 0 | N44: chr1 | O44: 2421001 | P44: 2421500 | Q44: 500 | R44: Hyp30p_q01_min3diffsCpG_1000win_merged42 | T44: chr1 | U44: 29427315 | V44: 29496910 | W44: 69596 | X44: All_HCC_PMD_42
A45: chr1 | B45: 118982501 | C45: 118985000 | D45: 2500 | E45: Hyper30p_q01_min3diffsCpG_1000win_merged43 | G45: MIXL1 | H45: chr1 | I45: 226224002 | J45: 226224500 | K45: Hyper30p_q01_min3diffsCpG_1000win_merged84 | L45: 338 | N45: chr1 | O45: 2422501 | P45: 2423500 | Q45: 1000 | R45: Hyp30p_q01_min3diffsCpG_1000win_merged43 | T45: chr1 | U45: 29649790 | V45: 30721450 | W45: 1071661 | X45: All_HCC_PMD_43
A46: chr1 | B46: 118986001 | C46: 118990500 | D46: 4500 | E46: Hyper30p_q01_min3diffsCpG_1000win_merged44 | G46: DUSP5P1 | H46: chr1 | I46: 228650002 | J46: 228650500 | K46: Hyper30p_q01_min3diffsCpG_1000win_merged85 | L46: 0 | N46: chr1 | O46: 2424501 | P46: 2426000 | Q46: 1500 | R46: Hyp30p_q01_min3diffsCpG_1000win_merged44 | T46: chr1 | U46: 30750710 | V46: 30914673 | W46: 163964 | X46: All_HCC_PMD_44
A47: chr1 | B47: 118992001 | C47: 118995000 | D47: 3000 | E47: Hyper30p_q01_min3diffsCpG_1000win_merged45 | G47: FCF1P7 | H47: chr1 | I47: 243268002 | J47: 243268500 | K47: Hyper30p_q01_min3diffsCpG_1000win_merged88 | L47: 0 | N47: chr1 | O47: 2433501 | P47: 2434000 | Q47: 500 | R47: Hyp30p_q01_min3diffsCpG_1000win_merged45 | T47: chr1 | U47: 31178430 | V47: 31247759 | W47: 69330 | X47: All_HCC_PMD_45
A48: chr1 | B48: 118997001 | C48: 118997500 | D48: 500 | E48: Hyper30p_q01_min3diffsCpG_1000win_merged46 | G48: ASB13 | H48: chr10 | I48: 5651002 | J48: 5651500 | K48: Hyper30p_q01_min3diffsCpG_1000win_merged633 | L48: 68 | N48: chr1 | O48: 2437501 | P48: 2441000 | Q48: 3500 | R48: Hyp30p_q01_min3diffsCpG_1000win_merged46 | T48: chr1 | U48: 31546273 | V48: 31611166 | W48: 64894 | X48: All_HCC_PMD_46
A49: chr1 | B49: 119000001 | C49: 119000500 | D49: 500 | E49: Hyper30p_q01_min3diffsCpG_1000win_merged47 | G49: VIM | H49: chr10 | I49: 17228002 | J49: 17228500 | K49: Hyper30p_q01_min3diffsCpG_1000win_merged639 | L49: 0 | N49: chr1 | O49: 2442001 | P49: 2442500 | Q49: 500 | R49: Hyp30p_q01_min3diffsCpG_1000win_merged47 | T49: chr1 | U49: 31642581 | V49: 31800573 | W49: 157993 | X49: All_HCC_PMD_47
A50: chr1 | B50: 119002501 | C50: 119004500 | D50: 2000 | E50: Hyper30p_q01_min3diffsCpG_1000win_merged48 | G50: VIM | H50: chr10 | I50: 17229502 | J50: 17230500 | K50: Hyper30p_q01_min3diffsCpG_1000win_merged640 | L50: 0 | N50: chr1 | O50: 2444501 | P50: 2445000 | Q50: 500 | R50: Hyp30p_q01_min3diffsCpG_1000win_merged48 | T50: chr1 | U50: 32414010 | V50: 32522694 | W50: 108685 | X50: All_HCC_PMD_48
A51: chr1 | B51: 119005501 | C51: 119008000 | D51: 2500 | E51: Hyper30p_q01_min3diffsCpG_1000win_merged49 | G51: ENSG00000279631 | H51: chr10 | I51: 22253002 | J51: 22254000 | K51: Hyper30p_q01_min3diffsCpG_1000win_merged641 | L51: 930 | N51: chr1 | O51: 2455001 | P51: 2455500 | Q51: 500 | R51: Hyp30p_q01_min3diffsCpG_1000win_merged49 | T51: chr1 | U51: 33510038 | V51: 34794266 | W51: 1284229 | X51: All_HCC_PMD_49
A52: chr1 | B52: 120197001 | C52: 120197500 | D52: 500 | E52: Hyper30p_q01_min3diffsCpG_1000win_merged50 | G52: SPAG6 | H52: chr10 | I52: 22345502 | J52: 22346000 | K52: Hyper30p_q01_min3diffsCpG_1000win_merged643 | L52: 4 | N52: chr1 | O52: 2464001 | P52: 2466000 | Q52: 2000 | R52: Hyp30p_q01_min3diffsCpG_1000win_merged50 | T52: chr1 | U52: 34856729 | V52: 34971122 | W52: 114394 | X52: All_HCC_PMD_50
A53: chr1 | B53: 121118001 | C53: 121119000 | D53: 1000 | E53: Hyper30p_q01_min3diffsCpG_1000win_merged51 | G53: ENSG00000285254 | H53: chr10 | I53: 22475502 | J53: 22478000 | K53: Hyper30p_q01_min3diffsCpG_1000win_merged644 | L53: 0 | N53: chr1 | O53: 2472501 | P53: 2473000 | Q53: 500 | R53: Hyp30p_q01_min3diffsCpG_1000win_merged51 | T53: chr1 | U53: 35636481 | V53: 35710304 | W53: 73824 | X53: All_HCC_PMD_51
A54: chr1 | B54: 145979501 | C54: 145980000 | D54: 500 | E54: Hyper30p_q01_min3diffsCpG_1000win_merged52 | G54: LRRC37A6P | H54: chr10 | I54: 27259002 | J54: 27259500 | K54: Hyper30p_q01_min3diffsCpG_1000win_merged645 | L54: 0 | N54: chr1 | O54: 2491501 | P54: 2492500 | Q54: 1000 | R54: Hyp30p_q01_min3diffsCpG_1000win_merged52 | T54: chr1 | U54: 36522659 | V54: 37451307 | W54: 928649 | X54: All_HCC_PMD_52
A55: chr1 | B55: 146038501 | C55: 146039500 | D55: 1000 | E55: Hyper30p_q01_min3diffsCpG_1000win_merged53 | G55: CAMK2G | H55: chr10 | I55: 73842502 | J55: 73843000 | K55: Hyper30p_q01_min3diffsCpG_1000win_merged653 | L55: -291 | N55: chr1 | O55: 2534001 | P55: 2534500 | Q55: 500 | R55: Hyp30p_q01_min3diffsCpG_1000win_merged53 | T55: chr1 | U55: 37593764 | V55: 37679550 | W55: 85787 | X55: All_HCC_PMD_53
A56: chr1 | B56: 147078001 | C56: 147079000 | D56: 1000 | E56: Hyper30p_q01_min3diffsCpG_1000win_merged54 | G56: ENSG00000272692 | H56: chr10 | I56: 75407502 | J56: 75409000 | K56: Hyper30p_q01_min3diffsCpG_1000win_merged654 | L56: -142 | N56: chr1 | O56: 2536501 | P56: 2537000 | Q56: 500 | R56: Hyp30p_q01_min3diffsCpG_1000win_merged54 | T56: chr1 | U56: 37712439 | V56: 37797058 | W56: 84620 | X56: All_HCC_PMD_54
A57: chr1 | B57: 147080001 | C57: 147080500 | D57: 500 | E57: Hyper30p_q01_min3diffsCpG_1000win_merged55 | G57: DYDC2 | H57: chr10 | I57: 80356502 | J57: 80357000 | K57: Hyper30p_q01_min3diffsCpG_1000win_merged659 | L57: 0 | N57: chr1 | O57: 2593001 | P57: 2593500 | Q57: 500 | R57: Hyp30p_q01_min3diffsCpG_1000win_merged55 | T57: chr1 | U57: 38033512 | V57: 38242372 | W57: 208861 | X57: All_HCC_PMD_55
A58: chr1 | B58: 148048501 | C58: 148049000 | D58: 500 | E58: Hyper30p_q01_min3diffsCpG_1000win_merged56 | G58: HTR7 | H58: chr10 | I58: 90857002 | J58: 90857500 | K58: Hyper30p_q01_min3diffsCpG_1000win_merged661 | L58: 198 | N58: chr1 | O58: 2595001 | P58: 2595500 | Q58: 500 | R58: Hyp30p_q01_min3diffsCpG_1000win_merged56 | T58: chr1 | U58: 38245764 | V58: 38837110 | W58: 591347 | X58: All_HCC_PMD_56
A59: chr1 | B59: 148361501 | C59: 148362000 | D59: 500 | E59: Hyper30p_q01_min3diffsCpG_1000win_merged57 | G59: ENSG00000234026 | H59: chr10 | I59: 95230502 | J59: 95231500 | K59: Hyper30p_q01_min3diffsCpG_1000win_merged665 | L59: 0 | N59: chr1 | O59: 2598001 | P59: 2598500 | Q59: 500 | R59: Hyp30p_q01_min3diffsCpG_1000win_merged57 | T59: chr1 | U59: 39573497 | V59: 39737771 | W59: 164275 | X59: All_HCC_PMD_57
A60: chr1 | B60: 151131001 | C60: 151132000 | D60: 1000 | E60: Hyper30p_q01_min3diffsCpG_1000win_merged58 | G60: PITX3 | H60: chr10 | I60: 102240502 | J60: 102241000 | K60: Hyper30p_q01_min3diffsCpG_1000win_merged666 | L60: 512 | N60: chr1 | O60: 2601501 | P60: 2602000 | Q60: 500 | R60: Hyp30p_q01_min3diffsCpG_1000win_merged58 | T60: chr1 | U60: 40094726 | V60: 40156315 | W60: 61590 | X60: All_HCC_PMD_58
A61: chr1 | B61: 151839001 | C61: 151840500 | D61: 1500 | E61: Hyper30p_q01_min3diffsCpG_1000win_merged59 | G61: WBP1L | H61: chr10 | I61: 102776002 | J61: 102776500 | K61: Hyper30p_q01_min3diffsCpG_1000win_merged667 | L61: 0 | N61: chr1 | O61: 2603501 | P61: 2606500 | Q61: 3000 | R61: Hyp30p_q01_min3diffsCpG_1000win_merged59 | T61: chr1 | U61: 41326388 | V61: 41419231 | W61: 92844 | X61: All_HCC_PMD_59
A62: chr1 | B62: 153894501 | C62: 153895000 | D62: 500 | E62: Hyper30p_q01_min3diffsCpG_1000win_merged60 | G62: SH3PXD2A | H62: chr10 | I62: 103678002 | J62: 103678500 | K62: Hyper30p_q01_min3diffsCpG_1000win_merged669 | L62: 0 | N62: chr1 | O62: 2613501 | P62: 2614000 | Q62: 500 | R62: Hyp30p_q01_min3diffsCpG_1000win_merged60 | T62: chr1 | U62: 42044424 | V62: 42147783 | W62: 103360 | X62: All_HCC_PMD_60
A63: chr1 | B63: 154502501 | C63: 154503000 | D63: 500 | E63: Hyper30p_q01_min3diffsCpG_1000win_merged61 | G63: SH3PXD2A | H63: chr10 | I63: 103693502 | J63: 103694000 | K63: Hyper30p_q01_min3diffsCpG_1000win_merged670 | L63: 0 | N63: chr1 | O63: 2616501 | P63: 2617000 | Q63: 500 | R63: Hyp30p_q01_min3diffsCpG_1000win_merged61 | T63: chr1 | U63: 42346135 | V63: 42422886 | W63: 76752 | X63: All_HCC_PMD_61
A64: chr1 | B64: 155320501 | C64: 155321000 | D64: 500 | E64: Hyper30p_q01_min3diffsCpG_1000win_merged62 | G64: LRRC27 | H64: chr10 | I64: 132337002 | J64: 132337500 | K64: Hyper30p_q01_min3diffsCpG_1000win_merged675 | L64: 0 | N64: chr1 | O64: 2620001 | P64: 2620500 | Q64: 500 | R64: Hyp30p_q01_min3diffsCpG_1000win_merged62 | T64: chr1 | U64: 42879160 | V64: 42936193 | W64: 57034 | X64: All_HCC_PMD_62
A65: chr1 | B65: 160981501 | C65: 160982500 | D65: 1000 | E65: Hyper30p_q01_min3diffsCpG_1000win_merged63 | G65: NKX6-2 | H65: chr10 | I65: 132784002 | J65: 132784500 | K65: Hyper30p_q01_min3diffsCpG_1000win_merged677 | L65: 265 | N65: chr1 | O65: 2621501 | P65: 2622000 | Q65: 500 | R65: Hyp30p_q01_min3diffsCpG_1000win_merged63 | T65: chr1 | U65: 42956959 | V65: 43160228 | W65: 203270 | X65: All_HCC_PMD_63
A66: chr1 | B66: 161422001 | C66: 161422500 | D66: 500 | E66: Hyper30p_q01_min3diffsCpG_1000win_merged64 | G66: NKX6-2 | H66: chr10 | I66: 132786002 | J66: 132786500 | K66: Hyper30p_q01_min3diffsCpG_1000win_merged678 | L66: 0 | N66: chr1 | O66: 2626001 | P66: 2626500 | Q66: 500 | R66: Hyp30p_q01_min3diffsCpG_1000win_merged64 | T66: chr1 | U66: 43996566 | V66: 44214995 | W66: 218430 | X66: All_HCC_PMD_64
A67: chr1 | B67: 161457001 | C67: 161457500 | D67: 500 | E67: Hyper30p_q01_min3diffsCpG_1000win_merged65 | G67: RNH1 | H67: chr11 | I67: 504502 | J67: 505000 | K67: Hyper30p_q01_min3diffsCpG_1000win_merged680 | L67: 0 | N67: chr1 | O67: 2649501 | P67: 2650000 | Q67: 500 | R67: Hyp30p_q01_min3diffsCpG_1000win_merged65 | T67: chr1 | U67: 44354165 | V67: 44624791 | W67: 270627 | X67: All_HCC_PMD_65
A68: chr1 | B68: 161525001 | C68: 161525500 | D68: 500 | E68: Hyper30p_q01_min3diffsCpG_1000win_merged66 | G68: EPS8L2 | H68: chr11 | I68: 721502 | J68: 722000 | K68: Hyper30p_q01_min3diffsCpG_1000win_merged683 | L68: 0 | N68: chr1 | O68: 2778501 | P68: 2779000 | Q68: 500 | R68: Hyp30p_q01_min3diffsCpG_1000win_merged66 | T68: chr1 | U68: 46421185 | V68: 46556028 | W68: =V68-U68+1 -> 134844 | X68: All_HCC_PMD_66
A69: chr1 | B69: 161621501 | C69: 161622000 | D69: 500 | E69: Hyper30p_q01_min3diffsCpG_1000win_merged67 | G69: ASCL2 | H69: chr11 | I69: 2270002 | J69: 2271500 | K69: Hyper30p_q01_min3diffsCpG_1000win_merged685 | L69: 0 | N69: chr1 | O69: 2784501 | P69: 2785000 | Q69: 500 | R69: Hyp30p_q01_min3diffsCpG_1000win_merged67 | T69: chr1 | U69: 46715985 | V69: 46876143 | W69: 160159 | X69: All_HCC_PMD_67
A70: chr1 | B70: 171841001 | C70: 171841500 | D70: 500 | E70: Hyper30p_q01_min3diffsCpG_1000win_merged68 | G70: CYB5R2 | H70: chr11 | I70: 7674002 | J70: 7674500 | K70: Hyper30p_q01_min3diffsCpG_1000win_merged688 | L70: 0 | N70: chr1 | O70: 2786001 | P70: 2786500 | Q70: 500 | R70: Hyp30p_q01_min3diffsCpG_1000win_merged68 | T70: chr1 | U70: 47189050 | V70: 47246329 | W70: 57280 | X70: All_HCC_PMD_68
A71: chr1 | B71: 173669501 | C71: 173670000 | D71: 500 | E71: Hyper30p_q01_min3diffsCpG_1000win_merged69 | G71: SCUBE2 | H71: chr11 | I71: 9091002 | J71: 9091500 | K71: Hyper30p_q01_min3diffsCpG_1000win_merged689 | L71: 46 | N71: chr1 | O71: 2787501 | P71: 2788000 | Q71: 500 | R71: Hyp30p_q01_min3diffsCpG_1000win_merged69 | T71: chr1 | U71: 47486419 | V71: 48215797 | W71: 729379 | X71: All_HCC_PMD_69
A72: chr1 | B72: 174938501 | C72: 174939000 | D72: 500 | E72: Hyper30p_q01_min3diffsCpG_1000win_merged70 | G72: RASSF10 | H72: chr11 | I72: 13009002 | J72: 13011000 | K72: Hyper30p_q01_min3diffsCpG_1000win_merged692 | L72: 0 | N72: chr1 | O72: 2791501 | P72: 2792000 | Q72: 500 | R72: Hyp30p_q01_min3diffsCpG_1000win_merged70 | T72: chr1 | U72: 48255646 | V72: 50435648 | W72: 2180003 | X72: All_HCC_PMD_70
A73: chr1 | B73: 183416501 | C73: 183417500 | D73: 1000 | E73: Hyper30p_q01_min3diffsCpG_1000win_merged71 | G73: OTUB1 | H73: chr11 | I73: 64000502 | J73: 64001000 | K73: Hyper30p_q01_min3diffsCpG_1000win_merged698 | L73: -115 | N73: chr1 | O73: 2795501 | P73: 2797000 | Q73: 1500 | R73: Hyp30p_q01_min3diffsCpG_1000win_merged71 | T73: chr1 | U73: 51035267 | V73: 51167814 | W73: 132548 | X73: All_HCC_PMD_71
A74: chr1 | B74: 197913001 | C74: 197914000 | D74: 1000 | E74: Hyper30p_q01_min3diffsCpG_1000win_merged72 | G74: ENSG00000256824 | H74: chr11 | I74: 64060502 | J74: 64061500 | K74: Hyper30p_q01_min3diffsCpG_1000win_merged699 | L74: 78 | N74: chr1 | O74: 2799501 | P74: 2800000 | Q74: 500 | R74: Hyp30p_q01_min3diffsCpG_1000win_merged72 | T74: chr1 | U74: 51876347 | V74: 51965578 | W74: 89232 | X74: All_HCC_PMD_72
A75: chr1 | B75: 197921001 | C75: 197922000 | D75: 1000 | E75: Hyper30p_q01_min3diffsCpG_1000win_merged73 | G75: TIGD3 | H75: chr11 | I75: 65355502 | J75: 65356000 | K75: Hyper30p_q01_min3diffsCpG_1000win_merged702 | L75: 751 | N75: chr1 | O75: 2803501 | P75: 2804000 | Q75: 500 | R75: Hyp30p_q01_min3diffsCpG_1000win_merged73 | T75: chr1 | U75: 53236757 | V75: 53755088 | W75: 518332 | X75: All_HCC_PMD_73
A76: chr1 | B76: 200034501 | C76: 200037000 | D76: 2500 | E76: Hyper30p_q01_min3diffsCpG_1000win_merged74 | G76: PCNX3 | H76: chr11 | I76: 65626002 | J76: 65626500 | K76: Hyper30p_q01_min3diffsCpG_1000win_merged703 | L76: -353 | N76: chr1 | O76: 2806001 | P76: 2806500 | Q76: 500 | R76: Hyp30p_q01_min3diffsCpG_1000win_merged74 | T76: chr1 | U76: 55279589 | V76: 55340968 | W76: 61380 | X76: All_HCC_PMD_74
A77: chr1 | B77: 200240501 | C77: 200241000 | D77: 500 | E77: Hyper30p_q01_min3diffsCpG_1000win_merged75 | G77: SNX32 | H77: chr11 | I77: 65833002 | J77: 65833500 | K77: Hyper30p_q01_min3diffsCpG_1000win_merged704 | L77: -334 | N77: chr1 | O77: 2807501 | P77: 2808500 | Q77: 1000 | R77: Hyp30p_q01_min3diffsCpG_1000win_merged75 | T77: chr1 | U77: 55347566 | V77: 55661435 | W77: 313870 | X77: All_HCC_PMD_75
A78: chr1 | B78: 203629001 | C78: 203629500 | D78: 500 | E78: Hyper30p_q01_min3diffsCpG_1000win_merged76 | G78: KLC2-AS2 | H78: chr11 | I78: 66267002 | J78: 66267500 | K78: Hyper30p_q01_min3diffsCpG_1000win_merged705 | L78: 629 | N78: chr1 | O78: 2811001 | P78: 2812500 | Q78: 1500 | R78: Hyp30p_q01_min3diffsCpG_1000win_merged76 | T78: chr1 | U78: 55667791 | V78: 56140728 | W78: 472938 | X78: All_HCC_PMD_76
A79: chr1 | B79: 204351001 | C79: 204351500 | D79: 500 | E79: Hyper30p_q01_min3diffsCpG_1000win_merged77 | G79: GRK2 | H79: chr11 | I79: 67270002 | J79: 67271500 | K79: Hyper30p_q01_min3diffsCpG_1000win_merged707 | L79: 0 | N79: chr1 | O79: 2813501 | P79: 2818000 | Q79: 4500 | R79: Hyp30p_q01_min3diffsCpG_1000win_merged77 | T79: chr1 | U79: 57081449 | V79: 57202477 | W79: 121029 | X79: All_HCC_PMD_77
A80: chr1 | B80: 204359501 | C80: 204360500 | D80: 1000 | E80: Hyper30p_q01_min3diffsCpG_1000win_merged78 | G80: DOC2GP | H80: chr11 | I80: 67614002 | J80: 67614500 | K80: Hyper30p_q01_min3diffsCpG_1000win_merged708 | L80: -421 | N80: chr1 | O80: 2819001 | P80: 2820000 | Q80: 1000 | R80: Hyp30p_q01_min3diffsCpG_1000win_merged78 | T80: chr1 | U80: 57318819 | V80: 58140738 | W80: 821920 | X80: All_HCC_PMD_78
A81: chr1 | B81: 206558001 | C81: 206558500 | D81: 500 | E81: Hyper30p_q01_min3diffsCpG_1000win_merged79 | G81: ACY3 | H81: chr11 | I81: 67646502 | J81: 67647000 | K81: Hyper30p_q01_min3diffsCpG_1000win_merged709 | L81: 583 | N81: chr1 | O81: 2821001 | P81: 2821500 | Q81: 500 | R81: Hyp30p_q01_min3diffsCpG_1000win_merged79 | T81: chr1 | U81: 58543808 | V81: 58642446 | W81: 98639 | X81: All_HCC_PMD_79
A82: chr1 | B82: 207867501 | C82: 207868000 | D82: 500 | E82: Hyper30p_q01_min3diffsCpG_1000win_merged80 | G82: TPCN2 | H82: chr11 | I82: 69056002 | J82: 69056500 | K82: Hyper30p_q01_min3diffsCpG_1000win_merged715 | L82: 840 | N82: chr1 | O82: 2822501 | P82: 2824500 | Q82: 2000 | R82: Hyp30p_q01_min3diffsCpG_1000win_merged80 | T82: chr1 | U82: 59957810 | V82: 60263162 | W82: 305353 | X82: All_HCC_PMD_80
A83: chr1 | B83: 213979501 | C83: 213980000 | D83: 500 | E83: Hyper30p_q01_min3diffsCpG_1000win_merged81 | G83: FGF19 | H83: chr11 | I83: 69702002 | J83: 69703500 | K83: Hyper30p_q01_min3diffsCpG_1000win_merged716 | L83: 522 | N83: chr1 | O83: 2826001 | P83: 2831500 | Q83: 5500 | R83: Hyp30p_q01_min3diffsCpG_1000win_merged81 | T83: chr1 | U83: 60286950 | V83: 60822828 | W83: 535879 | X83: All_HCC_PMD_81
A84: chr1 | B84: 220876501 | C84: 220878500 | D84: 2000 | E84: Hyper30p_q01_min3diffsCpG_1000win_merged82 | G84: FGF19 | H84: chr11 | I84: 69705002 | J84: 69705500 | K84: Hyper30p_q01_min3diffsCpG_1000win_merged717 | L84: -980 | N84: chr1 | O84: 2832501 | P84: 2842500 | Q84: 10000 | R84: Hyp30p_q01_min3diffsCpG_1000win_merged82 | T84: chr1 | U84: 60846265 | V84: 61026103 | W84: 179839 | X84: All_HCC_PMD_82
A85: chr1 | B85: 224175501 | C85: 224176000 | D85: 500 | E85: Hyper30p_q01_min3diffsCpG_1000win_merged83 | G85: SHANK2 | H85: chr11 | I85: 70661502 | J85: 70663000 | K85: Hyper30p_q01_min3diffsCpG_1000win_merged719 | L85: 0 | N85: chr1 | O85: 2845001 | P85: 2847500 | Q85: 2500 | R85: Hyp30p_q01_min3diffsCpG_1000win_merged83 | T85: chr1 | U85: 61468622 | V85: 61653337 | W85: 184716 | X85: All_HCC_PMD_83
A86: chr1 | B86: 225677001 | C86: 225677500 | D86: 500 | E86: Hyper30p_q01_min3diffsCpG_1000win_merged84 | G86: SHANK2 | H86: chr11 | I86: 70826502 | J86: 70827000 | K86: Hyper30p_q01_min3diffsCpG_1000win_merged721 | L86: 0 | N86: chr1 | O86: 2850001 | P86: 2853000 | Q86: 3000 | R86: Hyp30p_q01_min3diffsCpG_1000win_merged84 | T86: chr1 | U86: 62205360 | V86: 62416251 | W86: 210892 | X86: All_HCC_PMD_84
A87: chr1 | B87: 226224001 | C87: 226224500 | D87: 500 | E87: Hyper30p_q01_min3diffsCpG_1000win_merged85 | G87: ARHGEF17-AS1 | H87: chr11 | I87: 73309502 | J87: 73310000 | K87: Hyper30p_q01_min3diffsCpG_1000win_merged722 | L87: -141 | N87: chr1 | O87: 2855001 | P87: 2856000 | Q87: 1000 | R87: Hyp30p_q01_min3diffsCpG_1000win_merged85 | T87: chr1 | U87: 62875031 | V87: 63370114 | W87: 495084 | X87: All_HCC_PMD_85
A88: chr1 | B88: 228650001 | C88: 228650500 | D88: 500 | E88: Hyper30p_q01_min3diffsCpG_1000win_merged86 | G88: UCP2 | H88: chr11 | I88: 73982502 | J88: 73983000 | K88: Hyper30p_q01_min3diffsCpG_1000win_merged723 | L88: 0 | N88: chr1 | O88: 2857001 | P88: 2859000 | Q88: 2000 | R88: Hyp30p_q01_min3diffsCpG_1000win_merged86 | T88: chr1 | U88: 63690789 | V88: 64411143 | W88: 720355 | X88: All_HCC_PMD_86
A89: chr1 | B89: 229431501 | C89: 229432500 | D89: 1000 | E89: Hyper30p_q01_min3diffsCpG_1000win_merged87 | G89: KLHL35 | H89: chr11 | I89: 75430502 | J89: 75431000 | K89: Hyper30p_q01_min3diffsCpG_1000win_merged725 | L89: -311 | N89: chr1 | O89: 2860001 | P89: 2862500 | Q89: 2500 | R89: Hyp30p_q01_min3diffsCpG_1000win_merged87 | T89: chr1 | U89: 64418429 | V89: 64531782 | W89: 113354 | X89: All_HCC_PMD_87
A90: chr1 | B90: 230424501 | C90: 230425000 | D90: 500 | E90: Hyper30p_q01_min3diffsCpG_1000win_merged88 | G90: PAK1 | H90: chr11 | I90: 77411502 | J90: 77412000 | K90: Hyper30p_q01_min3diffsCpG_1000win_merged727 | L90: 0 | N90: chr1 | O90: 2868501 | P90: 2869000 | Q90: 500 | R90: Hyp30p_q01_min3diffsCpG_1000win_merged88 | T90: chr1 | U90: 64542125 | V90: 64826978 | W90: 284854 | X90: All_HCC_PMD_88
A91: chr1 | B91: 243268001 | C91: 243268500 | D91: 500 | E91: Hyper30p_q01_min3diffsCpG_1000win_merged89 | G91: DEUP1 | H91: chr11 | I91: 93330002 | J91: 93331000 | K91: Hyper30p_q01_min3diffsCpG_1000win_merged729 | L91: 0 | N91: chr1 | O91: 2871001 | P91: 2871500 | Q91: 500 | R91: Hyp30p_q01_min3diffsCpG_1000win_merged89 | T91: chr1 | U91: 65692755 | V91: 66734607 | W91: 1041853 | X91: All_HCC_PMD_89
A92: chr10 | B92: 5651001 | C92: 5651500 | D92: 500 | E92: Hyper30p_q01_min3diffsCpG_1000win_merged90 | G92: CFAP300 | H92: chr11 | I92: 102047502 | J92: 102048000 | K92: Hyper30p_q01_min3diffsCpG_1000win_merged730 | L92: 34 | N92: chr1 | O92: 2873501 | P92: 2874000 | Q92: 500 | R92: Hyp30p_q01_min3diffsCpG_1000win_merged90 | T92: chr1 | U92: 66747163 | V92: 66866968 | W92: 119806 | X92: All_HCC_PMD_90
A93: chr10 | B93: 11684501 | C93: 11685000 | D93: 500 | E93: Hyper30p_q01_min3diffsCpG_1000win_merged91 | G93: LINC02698 | H93: chr11 | I93: 115660002 | J93: 115660500 | K93: Hyper30p_q01_min3diffsCpG_1000win_merged731 | L93: 344 | N93: chr1 | O93: 2875001 | P93: 2875500 | Q93: 500 | R93: Hyp30p_q01_min3diffsCpG_1000win_merged91 | T93: chr1 | U93: 67062416 | V93: 67121448 | W93: 59033 | X93: All_HCC_PMD_91
A94: chr10 | B94: 11871501 | C94: 11872000 | D94: 500 | E94: Hyper30p_q01_min3diffsCpG_1000win_merged92 | G94: TTC36 | H94: chr11 | I94: 118528002 | J94: 118529000 | K94: Hyper30p_q01_min3diffsCpG_1000win_merged733 | L94: 528 | N94: chr1 | O94: 2876501 | P94: 2880000 | Q94: 3500 | R94: Hyp30p_q01_min3diffsCpG_1000win_merged92 | T94: chr1 | U94: 67220933 | V94: 67340465 | W94: 119533 | X94: All_HCC_PMD_92
A95: chr10 | B95: 13659001 | C95: 13659500 | D95: 500 | E95: Hyper30p_q01_min3diffsCpG_1000win_merged93 | G95: TMEM25 | H95: chr11 | I95: 118533002 | J95: 118533500 | K95: Hyper30p_q01_min3diffsCpG_1000win_merged734 | L95: 0 | N95: chr1 | O95: 2881001 | P95: 2881500 | Q95: 500 | R95: Hyp30p_q01_min3diffsCpG_1000win_merged93 | T95: chr1 | U95: 67867709 | V95: 68368048 | W95: 500340 | X95: All_HCC_PMD_93
A96: chr10 | B96: 16440501 | C96: 16441000 | D96: 500 | E96: Hyper30p_q01_min3diffsCpG_1000win_merged94 | G96: MIR100HG | H96: chr11 | I96: 122100502 | J96: 122101000 | K96: Hyper30p_q01_min3diffsCpG_1000win_merged736 | L96: 0 | N96: chr1 | O96: 2882501 | P96: 2886500 | Q96: 4000 | R96: Hyp30p_q01_min3diffsCpG_1000win_merged94 | T96: chr1 | U96: 68375172 | V96: 68470374 | W96: 95203 | X96: All_HCC_PMD_94
A97: chr10 | B97: 16519501 | C97: 16520000 | D97: 500 | E97: Hyper30p_q01_min3diffsCpG_1000win_merged95 | G97: TSPAN9 | H97: chr12 | I97: 3199502 | J97: 3201500 | K97: Hyper30p_q01_min3diffsCpG_1000win_merged741 | L97: 0 | N97: chr1 | O97: 2888501 | P97: 2889500 | Q97: 1000 | R97: Hyp30p_q01_min3diffsCpG_1000win_merged95 | T97: chr1 | U97: 68494863 | V97: 70137055 | W97: 1642193 | X97: All_HCC_PMD_95
A98: chr10 | B98: 17228001 | C98: 17228500 | D98: 500 | E98: Hyper30p_q01_min3diffsCpG_1000win_merged96 | G98: CRACR2A | H98: chr12 | I98: 3753002 | J98: 3753500 | K98: Hyper30p_q01_min3diffsCpG_1000win_merged743 | L98: 0 | N98: chr1 | O98: 2890501 | P98: 2891500 | Q98: 1000 | R98: Hyp30p_q01_min3diffsCpG_1000win_merged96 | T98: chr1 | U98: 70458640 | V98: 71057204 | W98: 598565 | X98: All_HCC_PMD_96
A99: chr10 | B99: 17229501 | C99: 17230500 | D99: 1000 | E99: Hyper30p_q01_min3diffsCpG_1000win_merged97 | G99: ENSG00000255836 | H99: chr12 | I99: 7440002 | J99: 7440500 | K99: Hyper30p_q01_min3diffsCpG_1000win_merged744 | L99: -12 | N99: chr1 | O99: 2892501 | P99: 2894000 | Q99: 1500 | R99: Hyp30p_q01_min3diffsCpG_1000win_merged97 | T99: chr1 | U99: 71078666 | V99: 71927521 | W99: 848856 | X99: All_HCC_PMD_97
A100: chr10 | B100: 22253001 | C100: 22254000 | D100: 1000 | E100: Hyper30p_q01_min3diffsCpG_1000win_merged98 | G100: SLC2A14 | H100: chr12 | I100: 7873002 | J100: 7873500 | K100: Hyper30p_q01_min3diffsCpG_1000win_merged745 | L100: 0 | N100: chr1 | O100: 2895001 | P100: 2896000 | Q100: 1000 | R100: Hyp30p_q01_min3diffsCpG_1000win_merged98 | T100: chr1 | U100: 71944164 | V100: 72228340 | W100: 284177 | X100: All_HCC_PMD_98
A101: chr10 | B101: 22334001 | C101: 22335000 | D101: 1000 | E101: Hyper30p_q01_min3diffsCpG_1000win_merged99 | G101: ENSG00000278654 | H101: chr12 | I101: 11500502 | J101: 11501000 | K101: Hyper30p_q01_min3diffsCpG_1000win_merged746 | L101: 3 | N101: chr1 | O101: 2897501 | P101: 2907500 | Q101: 10000 | R101: Hyp30p_q01_min3diffsCpG_1000win_merged99 | T101: chr1 | U101: 72346810 | V101: 74199835 | W101: 1853026 | X101: All_HCC_PMD_99
A102: chr10 | B102: 22345501 | C102: 22346000 | D102: 500 | E102: Hyper30p_q01_min3diffsCpG_1000win_merged100 | G102: CDKN1B | H102: chr12 | I102: 12714502 | J102: 12715000 | K102: Hyper30p_q01_min3diffsCpG_1000win_merged747 | L102: -58 | N102: chr1 | O102: 2908501 | P102: 2915500 | Q102: 7000 | R102: Hyp30p_q01_min3diffsCpG_1000win_merged100 | T102: chr1 | U102: 74215508 | V102: 74579619 | W102: 364112 | X102: All_HCC_PMD_100
A103: chr10 | B103: 22475501 | C103: 22478000 | D103: 2500 | E103: Hyper30p_q01_min3diffsCpG_1000win_merged101 | G103: LMO3 | H103: chr12 | I103: 16605002 | J103: 16605500 | K103: Hyper30p_q01_min3diffsCpG_1000win_merged750 | L103: 0 | N103: chr1 | O103: 2917001 | P103: 2920000 | Q103: 3000 | R103: Hyp30p_q01_min3diffsCpG_1000win_merged101 | T103: chr1 | U103: 74618389 | V103: 74690990 | W103: 72602 | X103: All_HCC_PMD_101
A104: chr10 | B104: 27259001 | C104: 27259500 | D104: 500 | E104: Hyper30p_q01_min3diffsCpG_1000win_merged102 | G104: LDHB | H104: chr12 | I104: 21657002 | J104: 21657500 | K104: Hyper30p_q01_min3diffsCpG_1000win_merged751 | L104: 0 | N104: chr1 | O104: 2922501 | P104: 2926500 | Q104: 4000 | R104: Hyp30p_q01_min3diffsCpG_1000win_merged102 | T104: chr1 | U104: 74764680 | V104: 75718559 | W104: 953880 | X104: All_HCC_PMD_102
A105: chr10 | B105: 29659001 | C105: 29659500 | D105: 500 | E105: Hyper30p_q01_min3diffsCpG_1000win_merged103 | G105: BCAT1 | H105: chr12 | I105: 24903002 | J105: 24903500 | K105: Hyper30p_q01_min3diffsCpG_1000win_merged752 | L105: 0 | N105: chr1 | O105: 2927501 | P105: 2935000 | Q105: 7500 | R105: Hyp30p_q01_min3diffsCpG_1000win_merged103 | T105: chr1 | U105: 75822204 | V105: 76669494 | W105: 847291 | X105: All_HCC_PMD_103
A106: chr10 | B106: 34809001 | C106: 34809500 | D106: 500 | E106: Hyper30p_q01_min3diffsCpG_1000win_merged104 | G106: ENSG00000257657 | H106: chr12 | I106: 45611002 | J106: 45611500 | K106: Hyper30p_q01_min3diffsCpG_1000win_merged754 | L106: -382 | N106: chr1 | O106: 2936001 | P106: 2937500 | Q106: 1500 | R106: Hyp30p_q01_min3diffsCpG_1000win_merged104 | T106: chr1 | U106: 76677031 | V106: 77083188 | W106: 406158 | X106: All_HCC_PMD_104
A107: chr10 | B107: 46541001 | C107: 46541500 | D107: 500 | E107: Hyper30p_q01_min3diffsCpG_1000win_merged105 | G107: AMIGO2 | H107: chr12 | I107: 47080002 | J107: 47081000 | K107: Hyper30p_q01_min3diffsCpG_1000win_merged755 | L107: -43 | N107: chr1 | O107: 2942501 | P107: 2944500 | Q107: 2000 | R107: Hyp30p_q01_min3diffsCpG_1000win_merged105 | T107: chr1 | U107: 77225335 | V107: 77539592 | W107: 314258 | X107: All_HCC_PMD_105
A108: chr10 | B108: 49441501 | C108: 49442000 | D108: 500 | E108: Hyper30p_q01_min3diffsCpG_1000win_merged106 | G108: HDAC7 | H108: chr12 | I108: 47812502 | J108: 47813000 | K108: Hyper30p_q01_min3diffsCpG_1000win_merged756 | L108: 51 | N108: chr1 | O108: 2945501 | P108: 2949500 | Q108: 4000 | R108: Hyp30p_q01_min3diffsCpG_1000win_merged106 | T108: chr1 | U108: 78475573 | V108: 78568104 | W108: 92532 | X108: All_HCC_PMD_106
A109: chr10 | B109: 62082501 | C109: 62083000 | D109: 500 | E109: Hyper30p_q01_min3diffsCpG_1000win_merged107 | G109: ARF3 | H109: chr12 | I109: 48956002 | J109: 48956500 | K109: Hyper30p_q01_min3diffsCpG_1000win_merged757 | L109: 0 | N109: chr1 | O109: 2950501 | P109: 2953500 | Q109: 3000 | R109: Hyp30p_q01_min3diffsCpG_1000win_merged107 | T109: chr1 | U109: 78690206 | V109: 80606708 | W109: 1916503 | X109: All_HCC_PMD_107
A110: chr10 | B110: 72248501 | C110: 72249000 | D110: 500 | E110: Hyper30p_q01_min3diffsCpG_1000win_merged108 | G110: ATP5MC2 | H110: chr12 | I110: 53677002 | J110: 53677500 | K110: Hyper30p_q01_min3diffsCpG_1000win_merged759 | L110: 0 | N110: chr1 | O110: 2959501 | P110: 2960000 | Q110: 500 | R110: Hyp30p_q01_min3diffsCpG_1000win_merged108 | T110: chr1 | U110: 80698299 | V110: 80871949 | W110: 173651 | X110: All_HCC_PMD_108
A111: chr10 | B111: 72297001 | C111: 72297500 | D111: 500 | E111: Hyper30p_q01_min3diffsCpG_1000win_merged109 | G111: CD63 | H111: chr12 | I111: 55730002 | J111: 55730500 | K111: Hyper30p_q01_min3diffsCpG_1000win_merged760 | L111: -295 | N111: chr1 | O111: 2961001 | P111: 2963500 | Q111: 2500 | R111: Hyp30p_q01_min3diffsCpG_1000win_merged109 | T111: chr1 | U111: 80885718 | V111: 81790258 | W111: 904541 | X111: All_HCC_PMD_109
A112: chr10 | B112: 73842501 | C112: 73843000 | D112: 500 | E112: Hyper30p_q01_min3diffsCpG_1000win_merged110 | G112: B4GALNT1 | H112: chr12 | I112: 57631502 | J112: 57632000 | K112: Hyper30p_q01_min3diffsCpG_1000win_merged761 | L112: -415 | N112: chr1 | O112: 2966001 | P112: 2968000 | Q112: 2000 | R112: Hyp30p_q01_min3diffsCpG_1000win_merged110 | T112: chr1 | U112: 82001332 | V112: 83063136 | W112: 1061805 | X112: All_HCC_PMD_110
A113: chr10 | B113: 75407501 | C113: 75409000 | D113: 1500 | E113: Hyper30p_q01_min3diffsCpG_1000win_merged111 | G113: PABPC1P4 | H113: chr12 | I113: 63821502 | J113: 63822000 | K113: Hyper30p_q01_min3diffsCpG_1000win_merged762 | L113: -21 | N113: chr1 | O113: 2969501 | P113: 2970000 | Q113: 500 | R113: Hyp30p_q01_min3diffsCpG_1000win_merged111 | T113: chr1 | U113: 83068674 | V113: 83528503 | W113: 459830 | X113: All_HCC_PMD_111
A114: chr10 | B114: 75904501 | C114: 75905000 | D114: 500 | E114: Hyper30p_q01_min3diffsCpG_1000win_merged112 | G114: RBMS1P1 | H114: chr12 | I114: 66235002 | J114: 66235500 | K114: Hyper30p_q01_min3diffsCpG_1000win_merged763 | L114: 0 | N114: chr1 | O114: 2971001 | P114: 2971500 | Q114: 500 | R114: Hyp30p_q01_min3diffsCpG_1000win_merged112 | T114: chr1 | U114: 83941568 | V114: 84071453 | W114: 129886 | X114: All_HCC_PMD_112
A115: chr10 | B115: 79147001 | C115: 79147500 | D115: 500 | E115: Hyper30p_q01_min3diffsCpG_1000win_merged113 | G115: MYF6 | H115: chr12 | I115: 80708002 | J115: 80709000 | K115: Hyper30p_q01_min3diffsCpG_1000win_merged764 | L115: 368 | N115: chr1 | O115: 2972501 | P115: 2973000 | Q115: 500 | R115: Hyp30p_q01_min3diffsCpG_1000win_merged113 | T115: chr1 | U115: 84252166 | V115: 84476891 | W115: 224726 | X115: All_HCC_PMD_113
A116: chr10 | B116: 79286501 | C116: 79287000 | D116: 500 | E116: Hyper30p_q01_min3diffsCpG_1000win_merged114 | G116: SOCS2 | H116: chr12 | I116: 93573502 | J116: 93574000 | K116: Hyper30p_q01_min3diffsCpG_1000win_merged765 | L116: 827 | N116: chr1 | O116: 2975001 | P116: 2975500 | Q116: 500 | R116: Hyp30p_q01_min3diffsCpG_1000win_merged114 | T116: chr1 | U116: 84741068 | V116: 85110177 | W116: 369110 | X116: All_HCC_PMD_114
A117: chr10 | B117: 79399001 | C117: 79400000 | D117: 1000 | E117: Hyper30p_q01_min3diffsCpG_1000win_merged115 | G117: USP44 | H117: chr12 | I117: 95548002 | J117: 95549500 | K117: Hyper30p_q01_min3diffsCpG_1000win_merged766 | L117: 0 | N117: chr1 | O117: 2979501 | P117: 2985500 | Q117: 6000 | R117: Hyp30p_q01_min3diffsCpG_1000win_merged115 | T117: chr1 | U117: 85721078 | V117: 86707386 | W117: 986309 | X117: All_HCC_PMD_115
A118: chr10 | B118: 80356501 | C118: 80357000 | D118: 500 | E118: Hyper30p_q01_min3diffsCpG_1000win_merged116 | G118: LINC02453 | H118: chr12 | I118: 98503002 | J118: 98503500 | K118: Hyper30p_q01_min3diffsCpG_1000win_merged769 | L118: 358 | N118: chr1 | O118: 2986501 | P118: 2987000 | Q118: 500 | R118: Hyp30p_q01_min3diffsCpG_1000win_merged116 | T118: chr1 | U118: 87122920 | V118: 87337704 | W118: 214785 | X118: All_HCC_PMD_116
A119: chr10 | B119: 86389501 | C119: 86390000 | D119: 500 | E119: Hyper30p_q01_min3diffsCpG_1000win_merged117 | G119: ALDH1L2 | H119: chr12 | I119: 105083502 | J119: 105085000 | K119: Hyper30p_q01_min3diffsCpG_1000win_merged771 | L119: 0 | N119: chr1 | O119: 2988001 | P119: 2992500 | Q119: 4500 | R119: Hyp30p_q01_min3diffsCpG_1000win_merged117 | T119: chr1 | U119: 87374708 | V119: 88113131 | W119: 738424 | X119: All_HCC_PMD_117
A120: chr10 | B120: 90857001 | C120: 90857500 | D120: 500 | E120: Hyper30p_q01_min3diffsCpG_1000win_merged118 | G120: KDM2B | H120: chr12 | I120: 121578502 | J120: 121579000 | K120: Hyper30p_q01_min3diffsCpG_1000win_merged781 | L120: 644 | N120: chr1 | O120: 2998501 | P120: 3001000 | Q120: 2500 | R120: Hyp30p_q01_min3diffsCpG_1000win_merged118 | T120: chr1 | U120: 88185210 | V120: 88647549 | W120: 462340 | X120: All_HCC_PMD_118
A121: chr10 | B121: 91887001 | C121: 91888000 | D121: 1000 | E121: Hyper30p_q01_min3diffsCpG_1000win_merged119 | G121: CFAP251 | H121: chr12 | I121: 121918002 | J121: 121919000 | K121: Hyper30p_q01_min3diffsCpG_1000win_merged783 | L121: 0 | N121: chr1 | O121: 3002001 | P121: 3006500 | Q121: 4500 | R121: Hyp30p_q01_min3diffsCpG_1000win_merged119 | T121: chr1 | U121: 89428682 | V121: 89528256 | W121: 99575 | X121: All_HCC_PMD_119
A122: chr10 | B122: 92045501 | C122: 92046000 | D122: 500 | E122: Hyper30p_q01_min3diffsCpG_1000win_merged120 | G122: VPS37B | H122: chr12 | I122: 122871002 | J122: 122873500 | K122: Hyper30p_q01_min3diffsCpG_1000win_merged784 | L122: 0 | N122: chr1 | O122: 3008501 | P122: 3011500 | Q122: 3000 | R122: Hyp30p_q01_min3diffsCpG_1000win_merged120 | T122: chr1 | U122: 89601245 | V122: 89789009 | W122: 187765 | X122: All_HCC_PMD_120
A123: chr10 | B123: 93068001 | C123: 93069500 | D123: 1500 | E123: Hyper30p_q01_min3diffsCpG_1000win_merged121 | G123: ENSG00000256001 | H123: chr12 | I123: 127145502 | J123: 127146000 | K123: Hyper30p_q01_min3diffsCpG_1000win_merged789 | L123: 0 | N123: chr1 | O123: 3013501 | P123: 3016000 | Q123: 2500 | R123: Hyp30p_q01_min3diffsCpG_1000win_merged121 | T123: chr1 | U123: 90044292 | V123: 90808385 | W123: 764094 | X123: All_HCC_PMD_121
A124: chr10 | B124: 95230501 | C124: 95231500 | D124: 1000 | E124: Hyper30p_q01_min3diffsCpG_1000win_merged122 | G124: FBRSL1 | H124: chr12 | I124: 132506502 | J124: 132507000 | K124: Hyper30p_q01_min3diffsCpG_1000win_merged792 | L124: -30 | N124: chr1 | O124: 3017501 | P124: 3018500 | Q124: 1000 | R124: Hyp30p_q01_min3diffsCpG_1000win_merged122 | T124: chr1 | U124: 91170118 | V124: 91497586 | W124: 327469 | X124: All_HCC_PMD_122
A125: chr10 | B125: 102240501 | C125: 102241000 | D125: 500 | E125: Hyper30p_q01_min3diffsCpG_1000win_merged123 | G125: CHFR | H125: chr12 | I125: 132904502 | J125: 132905000 | K125: Hyper30p_q01_min3diffsCpG_1000win_merged794 | L125: 0 | N125: chr1 | O125: 3019501 | P125: 3020500 | Q125: 1000 | R125: Hyp30p_q01_min3diffsCpG_1000win_merged123 | T125: chr1 | U125: 91538162 | V125: 91668623 | W125: 130462 | X125: All_HCC_PMD_123
A126: chr10 | B126: 102776001 | C126: 102776500 | D126: 500 | E126: Hyper30p_q01_min3diffsCpG_1000win_merged124 | G126: CHFR | H126: chr12 | I126: 132908002 | J126: 132909000 | K126: Hyper30p_q01_min3diffsCpG_1000win_merged795 | L126: 147 | N126: chr1 | O126: 3021501 | P126: 3025000 | Q126: 3500 | R126: Hyp30p_q01_min3diffsCpG_1000win_merged124 | T126: chr1 | U126: 91989997 | V126: 92075843 | W126: 85847 | X126: All_HCC_PMD_124
A127: chr10 | B127: 102796501 | C127: 102797000 | D127: 500 | E127: Hyper30p_q01_min3diffsCpG_1000win_merged125 | G127: GJA3 | H127: chr13 | I127: 20161502 | J127: 20162000 | K127: Hyper30p_q01_min3diffsCpG_1000win_merged796 | L127: -450 | N127: chr1 | O127: 3027001 | P127: 3028000 | Q127: 1000 | R127: Hyp30p_q01_min3diffsCpG_1000win_merged125 | T127: chr1 | U127: 94537460 | V127: 94750778 | W127: 213319 | X127: All_HCC_PMD_125
A128: chr10 | B128: 103678001 | C128: 103678500 | D128: 500 | E128: Hyper30p_q01_min3diffsCpG_1000win_merged126 | G128: ENSG00000279065 | H128: chr13 | I128: 20194002 | J128: 20194500 | K128: Hyper30p_q01_min3diffsCpG_1000win_merged797 | L128: 0 | N128: chr1 | O128: 3030001 | P128: 3032000 | Q128: 2000 | R128: Hyp30p_q01_min3diffsCpG_1000win_merged126 | T128: chr1 | U128: 95270012 | V128: 96717318 | W128: 1447307 | X128: All_HCC_PMD_126
A129: chr10 | B129: 103693501 | C129: 103694000 | D129: 500 | E129: Hyper30p_q01_min3diffsCpG_1000win_merged127 | G129: GRK6P1 | H129: chr13 | I129: 21319002 | J129: 21319500 | K129: Hyper30p_q01_min3diffsCpG_1000win_merged801 | L129: 0 | N129: chr1 | O129: 3033501 | P129: 3040500 | Q129: 7000 | R129: Hyp30p_q01_min3diffsCpG_1000win_merged127 | T129: chr1 | U129: 96843060 | V129: 97062853 | W129: 219794 | X129: All_HCC_PMD_127
A130: chr10 | B130: 103772001 | C130: 103772500 | D130: 500 | E130: Hyper30p_q01_min3diffsCpG_1000win_merged128 | G130: SPATA13 | H130: chr13 | I130: 24272002 | J130: 24272500 | K130: Hyper30p_q01_min3diffsCpG_1000win_merged802 | L130: -189 | N130: chr1 | O130: 3042501 | P130: 3043500 | Q130: 1000 | R130: Hyp30p_q01_min3diffsCpG_1000win_merged128 | T130: chr1 | U130: 97934218 | V130: 98656385 | W130: 722168 | X130: All_HCC_PMD_128
A131: chr10 | B131: 123137001 | C131: 123138500 | D131: 1500 | E131: Hyper30p_q01_min3diffsCpG_1000win_merged129 | G131: KL | H131: chr13 | I131: 33017002 | J131: 33017500 | K131: Hyper30p_q01_min3diffsCpG_1000win_merged805 | L131: 569 | N131: chr1 | O131: 3049001 | P131: 3049500 | Q131: 500 | R131: Hyp30p_q01_min3diffsCpG_1000win_merged129 | T131: chr1 | U131: 98776492 | V131: 99180732 | W131: 404241 | X131: All_HCC_PMD_129
A132: chr10 | B132: 124728501 | C132: 124729000 | D132: 500 | E132: Hyper30p_q01_min3diffsCpG_1000win_merged130 | G132: RGCC | H132: chr13 | I132: 41456502 | J132: 41457000 | K132: Hyper30p_q01_min3diffsCpG_1000win_merged806 | L132: -550 | N132: chr1 | O132: 3052001 | P132: 3055500 | Q132: 3500 | R132: Hyp30p_q01_min3diffsCpG_1000win_merged130 | T132: chr1 | U132: 99185479 | V132: 99476574 | W132: =V132-U132+1 -> 291096 | X132: All_HCC_PMD_130
A133: chr10 | B133: 127013001 | C133: 127013500 | D133: 500 | E133: Hyper30p_q01_min3diffsCpG_1000win_merged131 | G133: SUCLA2-AS1 | H133: chr13 | I133: 48001502 | J133: 48002000 | K133: Hyper30p_q01_min3diffsCpG_1000win_merged807 | L133: 113 | N133: chr1 | O133: 3056501 | P133: 3057000 | Q133: 500 | R133: Hyp30p_q01_min3diffsCpG_1000win_merged131 | T133: chr1 | U133: 100648691 | V133: 100871538 | W133: 222848 | X133: All_HCC_PMD_131
A134: chr10 | B134: 132337001 | C134: 132337500 | D134: 500 | E134: Hyper30p_q01_min3diffsCpG_1000win_merged132 | G134: RCBTB2 | H134: chr13 | I134: 48492502 | J134: 48493000 | K134: Hyper30p_q01_min3diffsCpG_1000win_merged808 | L134: 0 | N134: chr1 | O134: 3058001 | P134: 3061000 | Q134: 3000 | R134: Hyp30p_q01_min3diffsCpG_1000win_merged132 | T134: chr1 | U134: 101290108 | V134: 103508650 | W134: 2218543 | X134: All_HCC_PMD_132
A135: chr10 | B135: 132575001 | C135: 132575500 | D135: 500 | E135: Hyper30p_q01_min3diffsCpG_1000win_merged133 | G135: MIR3613 | H135: chr13 | I135: 49996002 | J135: 49996500 | K135: Hyper30p_q01_min3diffsCpG_1000win_merged809 | L135: 1 | N135: chr1 | O135: 3064501 | P135: 3066000 | Q135: 1500 | R135: Hyp30p_q01_min3diffsCpG_1000win_merged133 | T135: chr1 | U135: 103655153 | V135: 103722487 | W135: 67335 | X135: All_HCC_PMD_133
A136: chr10 | B136: 132784001 | C136: 132784500 | D136: 500 | E136: Hyper30p_q01_min3diffsCpG_1000win_merged134 | G136: SOX21 | H136: chr13 | I136: 94712002 | J136: 94712500 | K136: Hyper30p_q01_min3diffsCpG_1000win_merged812 | L136: 45 | N136: chr1 | O136: 3074501 | P136: 3083000 | Q136: 8500 | R136: Hyp30p_q01_min3diffsCpG_1000win_merged134 | T136: chr1 | U136: 103744866 | V136: 108556754 | W136: 4811889 | X136: All_HCC_PMD_134
A137: chr10 | B137: 132786001 | C137: 132786500 | D137: 500 | E137: Hyper30p_q01_min3diffsCpG_1000win_merged135 | G137: CLDN10 | H137: chr13 | I137: 95552502 | J137: 95554000 | K137: Hyper30p_q01_min3diffsCpG_1000win_merged813 | L137: 0 | N137: chr1 | O137: 3084001 | P137: 3085500 | Q137: 1500 | R137: Hyp30p_q01_min3diffsCpG_1000win_merged135 | T137: chr1 | U137: 109287567 | V137: 109382838 | W137: 95272 | X137: All_HCC_PMD_135
A138: chr11 | B138: 281001 | C138: 281500 | D138: 500 | E138: Hyper30p_q01_min3diffsCpG_1000win_merged136 | G138: ENSG00000286757 | H138: chr13 | I138: 99955502 | J138: 99956500 | K138: Hyper30p_q01_min3diffsCpG_1000win_merged817 | L138: 0 | N138: chr1 | O138: 3086501 | P138: 3094500 | Q138: 8000 | R138: Hyp30p_q01_min3diffsCpG_1000win_merged136 | T138: chr1 | U138: 109434136 | V138: 109486285 | W138: 52150 | X138: All_HCC_PMD_136
A139: chr11 | B139: 504501 | C139: 505000 | D139: 500 | E139: Hyper30p_q01_min3diffsCpG_1000win_merged137 | G139: EFNB2 | H139: chr13 | I139: 106534002 | J139: 106536500 | K139: Hyper30p_q01_min3diffsCpG_1000win_merged823 | L139: 0 | N139: chr1 | O139: 3096001 | P139: 3096500 | Q139: 500 | R139: Hyp30p_q01_min3diffsCpG_1000win_merged137 | T139: chr1 | U139: 109677525 | V139: 109777167 | W139: 99643 | X139: All_HCC_PMD_137
A140: chr11 | B140: 519001 | C140: 519500 | D140: 500 | E140: Hyper30p_q01_min3diffsCpG_1000win_merged138 | G140: NDRG2 | H140: chr14 | I140: 21023002 | J140: 21023500 | K140: Hyper30p_q01_min3diffsCpG_1000win_merged827 | L140: 0 | N140: chr1 | O140: 3097501 | P140: 3105000 | Q140: 7500 | R140: Hyp30p_q01_min3diffsCpG_1000win_merged138 | T140: chr1 | U140: 110063459 | V140: 110305168 | W140: 241710 | X140: All_HCC_PMD_138
A141: chr11 | B141: 611501 | C141: 612000 | D141: 500 | E141: Hyper30p_q01_min3diffsCpG_1000win_merged139 | G141: REC8 | H141: chr14 | I141: 24171502 | J141: 24172500 | K141: Hyper30p_q01_min3diffsCpG_1000win_merged829 | L141: 0 | N141: chr1 | O141: 3107001 | P141: 3111000 | Q141: 4000 | R141: Hyp30p_q01_min3diffsCpG_1000win_merged139 | T141: chr1 | U141: 110440737 | V141: 110933681 | W141: 492945 | X141: All_HCC_PMD_139
A142: chr11 | B142: 721501 | C142: 722000 | D142: 500 | E142: Hyper30p_q01_min3diffsCpG_1000win_merged140 | G142: DHRS1 | H142: chr14 | I142: 24291002 | J142: 24291500 | K142: Hyper30p_q01_min3diffsCpG_1000win_merged830 | L142: 0 | N142: chr1 | O142: 3112001 | P142: 3112500 | Q142: 500 | R142: Hyp30p_q01_min3diffsCpG_1000win_merged140 | T142: chr1 | U142: 110960748 | V142: 111108288 | W142: 147541 | X142: All_HCC_PMD_140
A143: chr11 | B143: 1521001 | C143: 1521500 | D143: 500 | E143: Hyper30p_q01_min3diffsCpG_1000win_merged141 | G143: RIPK3 | H143: chr14 | I143: 24339502 | J143: 24340000 | K143: Hyper30p_q01_min3diffsCpG_1000win_merged831 | L143: 0 | N143: chr1 | O143: 3116501 | P143: 3117500 | Q143: 1000 | R143: Hyp30p_q01_min3diffsCpG_1000win_merged141 | T143: chr1 | U143: 111198523 | V143: 111414313 | W143: 215791 | X143: All_HCC_PMD_141
A144: chr11 | B144: 2270001 | C144: 2271500 | D144: 1500 | E144: Hyper30p_q01_min3diffsCpG_1000win_merged142 | G144: CBLN3 | H144: chr14 | I144: 24430502 | J144: 24431000 | K144: Hyper30p_q01_min3diffsCpG_1000win_merged832 | L144: 0 | N144: chr1 | O144: 3118501 | P144: 3124000 | Q144: 5500 | R144: Hyp30p_q01_min3diffsCpG_1000win_merged142 | T144: chr1 | U144: 111774151 | V144: 112399288 | W144: 625138 | X144: All_HCC_PMD_142
A145: chr11 | B145: 2367501 | C145: 2368000 | D145: 500 | E145: Hyper30p_q01_min3diffsCpG_1000win_merged143 | G145: INSM2 | H145: chr14 | I145: 35535002 | J145: 35535500 | K145: Hyper30p_q01_min3diffsCpG_1000win_merged833 | L145: 838 | N145: chr1 | O145: 3125001 | P145: 3125500 | Q145: 500 | R145: Hyp30p_q01_min3diffsCpG_1000win_merged143 | T145: chr1 | U145: 112463802 | V145: 112514897 | W145: 51096 | X145: All_HCC_PMD_143
A146: chr11 | B146: 3030501 | C146: 3031000 | D146: 500 | E146: Hyper30p_q01_min3diffsCpG_1000win_merged144 | G146: TTC6 | H146: chr14 | I146: 37622002 | J146: 37623000 | K146: Hyper30p_q01_min3diffsCpG_1000win_merged836 | L146: 0 | N146: chr1 | O146: 3127001 | P146: 3139000 | Q146: 12000 | R146: Hyp30p_q01_min3diffsCpG_1000win_merged144 | T146: chr1 | U146: 112703892 | V146: 112880214 | W146: 176323 | X146: All_HCC_PMD_144
A147: chr11 | B147: 7674001 | C147: 7674500 | D147: 500 | E147: Hyper30p_q01_min3diffsCpG_1000win_merged145 | G147: ENSG00000258949 | H147: chr14 | I147: 44912002 | J147: 44912500 | K147: Hyper30p_q01_min3diffsCpG_1000win_merged838 | L147: -139 | N147: chr1 | O147: 3140001 | P147: 3146500 | Q147: 6500 | R147: Hyp30p_q01_min3diffsCpG_1000win_merged145 | T147: chr1 | U147: 113260076 | V147: 113370408 | W147: 110333 | X147: All_HCC_PMD_145
A148: chr11 | B148: 9091001 | C148: 9091500 | D148: 500 | E148: Hyper30p_q01_min3diffsCpG_1000win_merged146 | G148: MAP4K5 | H148: chr14 | I148: 50561002 | J148: 50561500 | K148: Hyper30p_q01_min3diffsCpG_1000win_merged839 | L148: 0 | N148: chr1 | O148: 3148001 | P148: 3153000 | Q148: 5000 | R148: Hyp30p_q01_min3diffsCpG_1000win_merged146 | T148: chr1 | U148: 113982443 | V148: 114354573 | W148: 372131 | X148: All_HCC_PMD_146
A149: chr11 | B149: 12680001 | C149: 12681000 | D149: 1000 | E149: Hyper30p_q01_min3diffsCpG_1000win_merged147 | G149: ABHD12B | H149: chr14 | I149: 50872002 | J149: 50872500 | K149: Hyper30p_q01_min3diffsCpG_1000win_merged840 | L149: 0 | N149: chr1 | O149: 3154001 | P149: 3158500 | Q149: 4500 | R149: Hyp30p_q01_min3diffsCpG_1000win_merged147 | T149: chr1 | U149: 114778804 | V149: 115646375 | W149: 867572 | X149: All_HCC_PMD_147
A150: chr11 | B150: 12815001 | C150: 12815500 | D150: 500 | E150: Hyper30p_q01_min3diffsCpG_1000win_merged148 | G150: TRIM9 | H150: chr14 | I150: 51093502 | J150: 51094500 | K150: Hyper30p_q01_min3diffsCpG_1000win_merged841 | L150: 576 | N150: chr1 | O150: 3159501 | P150: 3162500 | Q150: 3000 | R150: Hyp30p_q01_min3diffsCpG_1000win_merged148 | T150: chr1 | U150: 115698299 | V150: 116025059 | W150: 326761 | X150: All_HCC_PMD_148
A151: chr11 | B151: 13009001 | C151: 13011000 | D151: 2000 | E151: Hyper30p_q01_min3diffsCpG_1000win_merged149 | G151: BMP4 | H151: chr14 | I151: 53956502 | J151: 53957500 | K151: Hyper30p_q01_min3diffsCpG_1000win_merged842 | L151: 0 | N151: chr1 | O151: 3163501 | P151: 3164500 | Q151: 1000 | R151: Hyp30p_q01_min3diffsCpG_1000win_merged149 | T151: chr1 | U151: 116704604 | V151: 116850529 | W151: 145926 | X151: All_HCC_PMD_149
A152: chr11 | B152: 17736001 | C152: 17737000 | D152: 1000 | E152: Hyper30p_q01_min3diffsCpG_1000win_merged150 | G152: SAMD4A | H152: chr14 | I152: 54773502 | J152: 54774000 | K152: Hyper30p_q01_min3diffsCpG_1000win_merged843 | L152: -962 | N152: chr1 | O152: 3166001 | P152: 3167000 | Q152: 1000 | R152: Hyp30p_q01_min3diffsCpG_1000win_merged150 | T152: chr1 | U152: 117120329 | V152: 117334359 | W152: 214031 | X152: All_HCC_PMD_150
A153: chr11 | B153: 34251001 | C153: 34251500 | D153: 500 | E153: Hyper30p_q01_min3diffsCpG_1000win_merged151 | G153: SAMD4A | H153: chr14 | I153: 54776002 | J153: 54776500 | K153: Hyper30p_q01_min3diffsCpG_1000win_merged844 | L153: 0 | N153: chr1 | O153: 3172001 | P153: 3173500 | Q153: 1500 | R153: Hyp30p_q01_min3diffsCpG_1000win_merged151 | T153: chr1 | U153: 117638527 | V153: 117834488 | W153: 195962 | X153: All_HCC_PMD_151
A154: chr11 | B154: 45913501 | C154: 45914000 | D154: 500 | E154: Hyper30p_q01_min3diffsCpG_1000win_merged152 | G154: HIF1A-AS3 | H154: chr14 | I154: 61750502 | J154: 61751500 | K154: Hyper30p_q01_min3diffsCpG_1000win_merged849 | L154: 0 | N154: chr1 | O154: 3175501 | P154: 3176000 | Q154: 500 | R154: Hyp30p_q01_min3diffsCpG_1000win_merged152 | T154: chr1 | U154: 117970444 | V154: 118113863 | W154: 143420 | X154: All_HCC_PMD_152
A155: chr11 | B155: 60915501 | C155: 60916000 | D155: 500 | E155: Hyper30p_q01_min3diffsCpG_1000win_merged153 | G155: SYNE2 | H155: chr14 | I155: 64197002 | J155: 64197500 | K155: Hyper30p_q01_min3diffsCpG_1000win_merged850 | L155: 218 | N155: chr1 | O155: 3177001 | P155: 3180500 | Q155: 3500 | R155: Hyp30p_q01_min3diffsCpG_1000win_merged153 | T155: chr1 | U155: 118130570 | V155: 118843661 | W155: 713092 | X155: All_HCC_PMD_153
A156: chr11 | B156: 62444501 | C156: 62445000 | D156: 500 | E156: Hyper30p_q01_min3diffsCpG_1000win_merged154 | G156: HSPA2 | H156: chr14 | I156: 64541002 | J156: 64543000 | K156: Hyper30p_q01_min3diffsCpG_1000win_merged851 | L156: 261 | N156: chr1 | O156: 3182501 | P156: 3196500 | Q156: 14000 | R156: Hyp30p_q01_min3diffsCpG_1000win_merged154 | T156: chr1 | U156: 120985179 | V156: 121147538 | W156: 162360 | X156: All_HCC_PMD_154
A157: chr11 | B157: 64000501 | C157: 64001000 | D157: 500 | E157: Hyper30p_q01_min3diffsCpG_1000win_merged155 | G157: PLEKHG3 | H157: chr14 | I157: 64716002 | J157: 64717000 | K157: Hyper30p_q01_min3diffsCpG_1000win_merged852 | L157: 299 | N157: chr1 | O157: 3198001 | P157: 3210000 | Q157: 12000 | R157: Hyp30p_q01_min3diffsCpG_1000win_merged155 | T157: chr1 | U157: 121686439 | V157: 121805443 | W157: 119005 | X157: All_HCC_PMD_155
A158: chr11 | B158: 64060501 | C158: 64061500 | D158: 1000 | E158: Hyper30p_q01_min3diffsCpG_1000win_merged156 | G158: LTBP2 | H158: chr14 | I158: 74611002 | J158: 74611500 | K158: Hyper30p_q01_min3diffsCpG_1000win_merged855 | L158: 572 | N158: chr1 | O158: 3211001 | P158: 3211500 | Q158: 500 | R158: Hyp30p_q01_min3diffsCpG_1000win_merged156 | T158: chr1 | U158: 122379218 | V158: 122486899 | W158: 107682 | X158: All_HCC_PMD_156
A159: chr11 | B159: 64150501 | C159: 64151500 | D159: 1000 | E159: Hyper30p_q01_min3diffsCpG_1000win_merged157 | G159: DGLUCY | H159: chr14 | I159: 91170502 | J159: 91171000 | K159: Hyper30p_q01_min3diffsCpG_1000win_merged857 | L159: 461 | N159: chr1 | O159: 3213001 | P159: 3219000 | Q159: 6000 | R159: Hyp30p_q01_min3diffsCpG_1000win_merged157 | T159: chr1 | U159: 122537474 | V159: 123266103 | W159: 728630 | X159: All_HCC_PMD_157
A160: chr11 | B160: 65298001 | C160: 65298500 | D160: 500 | E160: Hyper30p_q01_min3diffsCpG_1000win_merged158 | G160: LINC00605 | H160: chr14 | I160: 103188502 | J160: 103189500 | K160: Hyper30p_q01_min3diffsCpG_1000win_merged863 | L160: 0 | N160: chr1 | O160: 3220001 | P160: 3236000 | Q160: 16000 | R160: Hyp30p_q01_min3diffsCpG_1000win_merged158 | T160: chr1 | U160: 123284899 | V160: 124461736 | W160: 1176838 | X160: All_HCC_PMD_158
A161: chr11 | B161: 65355501 | C161: 65356000 | D161: 500 | E161: Hyper30p_q01_min3diffsCpG_1000win_merged159 | G161: SCG5 | H161: chr15 | I161: 32641502 | J161: 32642000 | K161: Hyper30p_q01_min3diffsCpG_1000win_merged867 | L161: 0 | N161: chr1 | O161: 3237501 | P161: 3239500 | Q161: 2000 | R161: Hyp30p_q01_min3diffsCpG_1000win_merged159 | T161: chr1 | U161: 124465244 | V161: 124633554 | W161: 168311 | X161: All_HCC_PMD_159
A162: chr11 | B162: 65626001 | C162: 65626500 | D162: 500 | E162: Hyper30p_q01_min3diffsCpG_1000win_merged160 | G162: GREM1 | H162: chr15 | I162: 32716502 | J162: 32717500 | K162: Hyper30p_q01_min3diffsCpG_1000win_merged868 | L162: -504 | N162: chr1 | O162: 3240501 | P162: 3247000 | Q162: 6500 | R162: Hyp30p_q01_min3diffsCpG_1000win_merged160 | T162: chr1 | U162: 124640956 | V162: 124716989 | W162: 76034 | X162: All_HCC_PMD_160
A163: chr11 | B163: 65833001 | C163: 65833500 | D163: 500 | E163: Hyper30p_q01_min3diffsCpG_1000win_merged161 | G163: MEIS2 | H163: chr15 | I163: 37096502 | J163: 37097000 | K163: Hyper30p_q01_min3diffsCpG_1000win_merged869 | L163: 0 | N163: chr1 | O163: 3248501 | P163: 3253500 | Q163: 5000 | R163: Hyp30p_q01_min3diffsCpG_1000win_merged161 | T163: chr1 | U163: 124794900 | V163: 124848066 | W163: 53167 | X163: All_HCC_PMD_161
A164: chr11 | B164: 66267001 | C164: 66267500 | D164: 500 | E164: Hyper30p_q01_min3diffsCpG_1000win_merged162 | G164: DNAJC17 | H164: chr15 | I164: 40776502 | J164: 40777000 | K164: Hyper30p_q01_min3diffsCpG_1000win_merged870 | L164: 0 | N164: chr1 | O164: 3255001 | P164: 3259000 | Q164: 4000 | R164: Hyp30p_q01_min3diffsCpG_1000win_merged162 | T164: chr1 | U164: 143184664 | V164: 143741915 | W164: 557252 | X164: All_HCC_PMD_162
A165: chr11 | B165: 67268501 | C165: 67269000 | D165: 500 | E165: Hyper30p_q01_min3diffsCpG_1000win_merged163 | G165: ITPKA | H165: chr15 | I165: 41502002 | J165: 41503500 | K165: Hyper30p_q01_min3diffsCpG_1000win_merged871 | L165: 208 | N165: chr1 | O165: 3261501 | P165: 3267500 | Q165: 6000 | R165: Hyp30p_q01_min3diffsCpG_1000win_merged163 | T165: chr1 | U165: 143767918 | V165: 143952657 | W165: 184740 | X165: All_HCC_PMD_163
A166: chr11 | B166: 67270001 | C166: 67271500 | D166: 1500 | E166: Hyper30p_q01_min3diffsCpG_1000win_merged164 | G166: LTK | H166: chr15 | I166: 41513002 | J166: 41513500 | K166: Hyper30p_q01_min3diffsCpG_1000win_merged872 | L166: 296 | N166: chr1 | O166: 3268501 | P166: 3270500 | Q166: 2000 | R166: Hyp30p_q01_min3diffsCpG_1000win_merged164 | T166: chr1 | U166: 144074657 | V166: 144140206 | W166: 65550 | X166: All_HCC_PMD_164
A167: chr11 | B167: 67614001 | C167: 67614500 | D167: 500 | E167: Hyper30p_q01_min3diffsCpG_1000win_merged165 | G167: MGA | H167: chr15 | I167: 41660002 | J167: 41660500 | K167: Hyper30p_q01_min3diffsCpG_1000win_merged873 | L167: 0 | N167: chr1 | O167: 3271501 | P167: 3272500 | Q167: 1000 | R167: Hyp30p_q01_min3diffsCpG_1000win_merged165 | T167: chr1 | U167: 144214058 | V167: 144419176 | W167: 205119 | X167: All_HCC_PMD_165
A168: chr11 | B168: 67646501 | C168: 67647000 | D168: 500 | E168: Hyper30p_q01_min3diffsCpG_1000win_merged166 | G168: SCG3 | H168: chr15 | I168: 51681502 | J168: 51682000 | K168: Hyper30p_q01_min3diffsCpG_1000win_merged875 | L168: 0 | N168: chr1 | O168: 3274001 | P168: 3279000 | Q168: 5000 | R168: Hyp30p_q01_min3diffsCpG_1000win_merged166 | T168: chr1 | U168: 144447447 | V168: 144845553 | W168: 398107 | X168: All_HCC_PMD_166
A169: chr11 | B169: 68142001 | C169: 68142500 | D169: 500 | E169: Hyper30p_q01_min3diffsCpG_1000win_merged167 | G169: ONECUT1 | H169: chr15 | I169: 52791002 | J169: 52792000 | K169: Hyper30p_q01_min3diffsCpG_1000win_merged876 | L169: 0 | N169: chr1 | O169: 3280001 | P169: 3283000 | Q169: 3000 | R169: Hyp30p_q01_min3diffsCpG_1000win_merged167 | T169: chr1 | U169: 145219196 | V169: 145283641 | W169: 64446 | X169: All_HCC_PMD_167
A170: chr11 | B170: 68381001 | C170: 68382000 | D170: 1000 | E170: Hyper30p_q01_min3diffsCpG_1000win_merged168 | G170: ALDH1A2-AS1 | H170: chr15 | I170: 58065002 | J170: 58065500 | K170: Hyper30p_q01_min3diffsCpG_1000win_merged879 | L170: 0 | N170: chr1 | O170: 3284501 | P170: 3287000 | Q170: 2500 | R170: Hyp30p_q01_min3diffsCpG_1000win_merged168 | T170: chr1 | U170: 145422601 | V170: 145610308 | W170: 187708 | X170: All_HCC_PMD_168
A171: chr11 | B171: 68413001 | C171: 68414000 | D171: 1000 | E171: Hyper30p_q01_min3diffsCpG_1000win_merged169 | G171: FOXB1 | H171: chr15 | I171: 60004502 | J171: 60005500 | K171: Hyper30p_q01_min3diffsCpG_1000win_merged880 | L171: 191 | N171: chr1 | O171: 3288001 | P171: 3288500 | Q171: 500 | R171: Hyp30p_q01_min3diffsCpG_1000win_merged169 | T171: chr1 | U171: 146397710 | V171: 146904840 | W171: 507131 | X171: All_HCC_PMD_169
A172: chr11 | B172: 68855001 | C172: 68855500 | D172: 500 | E172: Hyper30p_q01_min3diffsCpG_1000win_merged170 | G172: C2CD4B | H172: chr15 | I172: 62163502 | J172: 62165500 | K172: Hyper30p_q01_min3diffsCpG_1000win_merged881 | L172: 0 | N172: chr1 | O172: 3289501 | P172: 3293500 | Q172: 4000 | R172: Hyp30p_q01_min3diffsCpG_1000win_merged170 | T172: chr1 | U172: 147310981 | V172: 147385094 | W172: 74114 | X172: All_HCC_PMD_170
A173: chr11 | B173: 68955501 | C173: 68956000 | D173: 500 | E173: Hyper30p_q01_min3diffsCpG_1000win_merged171 | G173: PIF1 | H173: chr15 | I173: 64823502 | J173: 64825000 | K173: Hyper30p_q01_min3diffsCpG_1000win_merged882 | L173: 617 | N173: chr1 | O173: 3296001 | P173: 3299500 | Q173: 3500 | R173: Hyp30p_q01_min3diffsCpG_1000win_merged171 | T173: chr1 | U173: 147667710 | V173: 147795489 | W173: 127780 | X173: All_HCC_PMD_171
A174: chr11 | B174: 69056001 | C174: 69056500 | D174: 500 | E174: Hyper30p_q01_min3diffsCpG_1000win_merged172 | G174: SKOR1 | H174: chr15 | I174: 67820002 | J174: 67820500 | K174: Hyper30p_q01_min3diffsCpG_1000win_merged887 | L174: 298 | N174: chr1 | O174: 3300501 | P174: 3312000 | Q174: 11500 | R174: Hyp30p_q01_min3diffsCpG_1000win_merged172 | T174: chr1 | U174: 147815423 | V174: 147895724 | W174: 80302 | X174: All_HCC_PMD_172
A175: chr11 | B175: 69702001 | C175: 69703500 | D175: 1500 | E175: Hyper30p_q01_min3diffsCpG_1000win_merged173 | G175: SKOR1 | H175: chr15 | I175: 67826002 | J175: 67826500 | K175: Hyper30p_q01_min3diffsCpG_1000win_merged888 | L175: 486 | N175: chr1 | O175: 3313501 | P175: 3314000 | Q175: 500 | R175: Hyp30p_q01_min3diffsCpG_1000win_merged173 | T175: chr1 | U175: 148007838 | V175: 148096770 | W175: 88933 | X175: All_HCC_PMD_173
A176: chr11 | B176: 69705001 | C176: 69705500 | D176: 500 | E176: Hyper30p_q01_min3diffsCpG_1000win_merged174 | G176: CELF6 | H176: chr15 | I176: 72320502 | J176: 72321000 | K176: Hyper30p_q01_min3diffsCpG_1000win_merged892 | L176: -345 | N176: chr1 | O176: 3315501 | P176: 3316000 | Q176: 500 | R176: Hyp30p_q01_min3diffsCpG_1000win_merged174 | T176: chr1 | U176: 148203756 | V176: 148260541 | W176: 56786 | X176: All_HCC_PMD_174
A177: chr11 | B177: 70568001 | C177: 70568500 | D177: 500 | E177: Hyper30p_q01_min3diffsCpG_1000win_merged175 | G177: ISLR2 | H177: chr15 | I177: 74132502 | J177: 74133000 | K177: Hyper30p_q01_min3diffsCpG_1000win_merged893 | L177: 600 | N177: chr1 | O177: 3317001 | P177: 3318500 | Q177: 1500 | R177: Hyp30p_q01_min3diffsCpG_1000win_merged175 | T177: chr1 | U177: 149693769 | V177: 149785889 | W177: 92121 | X177: All_HCC_PMD_175
A178: chr11 | B178: 70661501 | C178: 70663000 | D178: 1500 | E178: Hyper30p_q01_min3diffsCpG_1000win_merged176 | G178: MIR4513 | H178: chr15 | I178: 74789002 | J178: 74789500 | K178: Hyper30p_q01_min3diffsCpG_1000win_merged894 | L178: -245 | N178: chr1 | O178: 3326001 | P178: 3327000 | Q178: 1000 | R178: Hyp30p_q01_min3diffsCpG_1000win_merged176 | T178: chr1 | U178: 152013655 | V178: 153579615 | W178: 1565961 | X178: All_HCC_PMD_176
A179: chr11 | B179: 70671001 | C179: 70671500 | D179: 500 | E179: Hyper30p_q01_min3diffsCpG_1000win_merged177 | G179: ISL2 | H179: chr15 | I179: 76335002 | J179: 76336000 | K179: Hyper30p_q01_min3diffsCpG_1000win_merged895 | L179: -773 | N179: chr1 | O179: 3328001 | P179: 3328500 | Q179: 500 | R179: Hyp30p_q01_min3diffsCpG_1000win_merged177 | T179: chr1 | U179: 154029865 | V179: 154098753 | W179: 68889 | X179: All_HCC_PMD_177
A180: chr11 | B180: 70826501 | C180: 70827000 | D180: 500 | E180: Hyper30p_q01_min3diffsCpG_1000win_merged178 | G180: CHRNB4 | H180: chr15 | I180: 78641002 | J180: 78641500 | K180: Hyper30p_q01_min3diffsCpG_1000win_merged898 | L180: 0 | N180: chr1 | O180: 3329501 | P180: 3330000 | Q180: 500 | R180: Hyp30p_q01_min3diffsCpG_1000win_merged178 | T180: chr1 | U180: 154625802 | V180: 154780254 | W180: 154453 | X180: All_HCC_PMD_178
A181: chr11 | B181: 73309501 | C181: 73310000 | D181: 500 | E181: Hyper30p_q01_min3diffsCpG_1000win_merged179 | G181: HOMER2 | H181: chr15 | I181: 82849502 | J181: 82850000 | K181: Hyper30p_q01_min3diffsCpG_1000win_merged900 | L181: 0 | N181: chr1 | O181: 3331501 | P181: 3335000 | Q181: 3500 | R181: Hyp30p_q01_min3diffsCpG_1000win_merged179 | T181: chr1 | U181: 154789517 | V181: 154898734 | W181: 109218 | X181: All_HCC_PMD_179
A182: chr11 | B182: 73982501 | C182: 73983000 | D182: 500 | E182: Hyper30p_q01_min3diffsCpG_1000win_merged180 | G182: HOMER2 | H182: chr15 | I182: 82853002 | J182: 82853500 | K182: Hyper30p_q01_min3diffsCpG_1000win_merged901 | L182: -219 | N182: chr1 | O182: 3336001 | P182: 3336500 | Q182: 500 | R182: Hyp30p_q01_min3diffsCpG_1000win_merged180 | T182: chr1 | U182: 156382624 | V182: 156446702 | W182: 64079 | X182: All_HCC_PMD_180
A183: chr11 | B183: 75343501 | C183: 75344000 | D183: 500 | E183: Hyper30p_q01_min3diffsCpG_1000win_merged181 | G183: AKAP13 | H183: chr15 | I183: 85689502 | J183: 85690500 | K183: Hyper30p_q01_min3diffsCpG_1000win_merged902 | L183: 0 | N183: chr1 | O183: 3338001 | P183: 3339500 | Q183: 1500 | R183: Hyp30p_q01_min3diffsCpG_1000win_merged181 | T183: chr1 | U183: 156568718 | V183: 156712775 | W183: 144058 | X183: All_HCC_PMD_181
A184: chr11 | B184: 75430501 | C184: 75431000 | D184: 500 | E184: Hyper30p_q01_min3diffsCpG_1000win_merged182 | G184: CRTC3 | H184: chr15 | I184: 90598002 | J184: 90598500 | K184: Hyper30p_q01_min3diffsCpG_1000win_merged907 | L184: 0 | N184: chr1 | O184: 3341501 | P184: 3343000 | Q184: 1500 | R184: Hyp30p_q01_min3diffsCpG_1000win_merged182 | T184: chr1 | U184: 156808318 | V184: 156933305 | W184: 124988 | X184: All_HCC_PMD_182
A185: chr11 | B185: 77072001 | C185: 77072500 | D185: 500 | E185: Hyper30p_q01_min3diffsCpG_1000win_merged183 | G185: NR2F2-AS1 | H185: chr15 | I185: 96322502 | J185: 96324000 | K185: Hyper30p_q01_min3diffsCpG_1000win_merged908 | L185: 0 | N185: chr1 | O185: 3345001 | P185: 3347500 | Q185: 2500 | R185: Hyp30p_q01_min3diffsCpG_1000win_merged183 | T185: chr1 | U185: 157062448 | V185: 157116474 | W185: 54027 | X185: All_HCC_PMD_183
A186: chr11 | B186: 77411501 | C186: 77412000 | D186: 500 | E186: Hyper30p_q01_min3diffsCpG_1000win_merged184 | G186: ENSG00000275322 | H186: chr15 | I186: 96341502 | J186: 96345000 | K186: Hyper30p_q01_min3diffsCpG_1000win_merged909 | L186: 0 | N186: chr1 | O186: 3354001 | P186: 3356500 | Q186: 2500 | R186: Hyp30p_q01_min3diffsCpG_1000win_merged184 | T186: chr1 | U186: 157134545 | V186: 157194182 | W186: 59638 | X186: All_HCC_PMD_184
A187: chr11 | B187: 86202501 | C187: 86203000 | D187: 500 | E187: Hyper30p_q01_min3diffsCpG_1000win_merged185 | G187: ENSG00000259275 | H187: chr15 | I187: 96353502 | J187: 96354000 | K187: Hyper30p_q01_min3diffsCpG_1000win_merged911 | L187: -237 | N187: chr1 | O187: 3357501 | P187: 3370500 | Q187: 13000 | R187: Hyp30p_q01_min3diffsCpG_1000win_merged185 | T187: chr1 | U187: 157249431 | V187: 157357197 | W187: 107767 | X187: All_HCC_PMD_185
A188: chr11 | B188: 93330001 | C188: 93331000 | D188: 1000 | E188: Hyper30p_q01_min3diffsCpG_1000win_merged186 | G188: IGF1R | H188: chr15 | I188: 98650502 | J188: 98651000 | K188: Hyper30p_q01_min3diffsCpG_1000win_merged914 | L188: 920 | N188: chr1 | O188: 3371501 | P188: 3378000 | Q188: 6500 | R188: Hyp30p_q01_min3diffsCpG_1000win_merged186 | T188: chr1 | U188: 157366295 | V188: 157421605 | W188: 55311 | X188: All_HCC_PMD_186
A189: chr11 | B189: 102047501 | C189: 102048000 | D189: 500 | E189: Hyper30p_q01_min3diffsCpG_1000win_merged187 | G189: ENSG00000289271 | H189: chr15 | I189: 101501502 | J189: 101502000 | K189: Hyper30p_q01_min3diffsCpG_1000win_merged916 | L189: 0 | N189: chr1 | O189: 3380501 | P189: 3388000 | Q189: 7500 | R189: Hyp30p_q01_min3diffsCpG_1000win_merged187 | T189: chr1 | U189: 157448164 | V189: 159243663 | W189: 1795500 | X189: All_HCC_PMD_187
A190: chr11 | B190: 115660001 | C190: 115660500 | D190: 500 | E190: Hyper30p_q01_min3diffsCpG_1000win_merged188 | G190: ENSG00000259658 | H190: chr15 | I190: 101745502 | J190: 101746000 | K190: Hyper30p_q01_min3diffsCpG_1000win_merged917 | L190: 0 | N190: chr1 | O190: 3389001 | P190: 3392500 | Q190: 3500 | R190: Hyp30p_q01_min3diffsCpG_1000win_merged188 | T190: chr1 | U190: 159288540 | V190: 159391665 | W190: 103126 | X190: All_HCC_PMD_188
A191: chr11 | B191: 116790001 | C191: 116790500 | D191: 500 | E191: Hyper30p_q01_min3diffsCpG_1000win_merged189 | G191: HBM | H191: chr16 | I191: 166002 | J191: 166500 | K191: Hyper30p_q01_min3diffsCpG_1000win_merged919 | L191: 24 | N191: chr1 | O191: 3394501 | P191: 3402500 | Q191: 8000 | R191: Hyp30p_q01_min3diffsCpG_1000win_merged189 | T191: chr1 | U191: 159787995 | V191: 159903126 | W191: 115132 | X191: All_HCC_PMD_189
A192: chr11 | B192: 118528001 | C192: 118529000 | D192: 1000 | E192: Hyper30p_q01_min3diffsCpG_1000win_merged190 | G192: MEIOB | H192: chr16 | I192: 1872502 | J192: 1873000 | K192: Hyper30p_q01_min3diffsCpG_1000win_merged920 | L192: -324 | N192: chr1 | O192: 3403501 | P192: 3404500 | Q192: 1000 | R192: Hyp30p_q01_min3diffsCpG_1000win_merged190 | T192: chr1 | U192: 159922415 | V192: 160023579 | W192: 101165 | X192: All_HCC_PMD_190
A193: chr11 | B193: 118533001 | C193: 118533500 | D193: 500 | E193: Hyper30p_q01_min3diffsCpG_1000win_merged191 | G193: ABCA17P | H193: chr16 | I193: 2342002 | J193: 2342500 | K193: Hyper30p_q01_min3diffsCpG_1000win_merged921 | L193: -479 | N193: chr1 | O193: 3405501 | P193: 3406500 | Q193: 1000 | R193: Hyp30p_q01_min3diffsCpG_1000win_merged191 | T193: chr1 | U193: 160096796 | V193: 160196495 | W193: 99700 | X193: All_HCC_PMD_191
A194: chr11 | B194: 119356501 | C194: 119357000 | D194: 500 | E194: Hyper30p_q01_min3diffsCpG_1000win_merged192 | G194: ENSG00000262521 | H194: chr16 | I194: 3184002 | J194: 3184500 | K194: Hyper30p_q01_min3diffsCpG_1000win_merged926 | L194: 0 | N194: chr1 | O194: 3407501 | P194: 3408500 | Q194: 1000 | R194: Hyp30p_q01_min3diffsCpG_1000win_merged192 | T194: chr1 | U194: 160363216 | V194: 160631010 | W194: 267795 | X194: All_HCC_PMD_192
A195: chr11 | B195: 122100501 | C195: 122101000 | D195: 500 | E195: Hyper30p_q01_min3diffsCpG_1000win_merged193 | G195: CLUAP1 | H195: chr16 | I195: 3500002 | J195: 3500500 | K195: Hyper30p_q01_min3diffsCpG_1000win_merged927 | L195: -476 | N195: chr1 | O195: 3410501 | P195: 3411500 | Q195: 1000 | R195: Hyp30p_q01_min3diffsCpG_1000win_merged193 | T195: chr1 | U195: 160638807 | V195: 160862597 | W195: 223791 | X195: All_HCC_PMD_193
A196: chr11 | B196: 124921001 | C196: 124921500 | D196: 500 | E196: Hyper30p_q01_min3diffsCpG_1000win_merged194 | G196: ERN2 | H196: chr16 | I196: 23695002 | J196: 23695500 | K196: Hyper30p_q01_min3diffsCpG_1000win_merged932 | L196: -242 | N196: chr1 | O196: 3413501 | P196: 3416500 | Q196: 3000 | R196: Hyp30p_q01_min3diffsCpG_1000win_merged194 | T196: chr1 | U196: 160869958 | V196: 160932544 | W196: =V196-U196+1 -> 62587 | X196: All_HCC_PMD_194
A197: chr12 | B197: 3119501 | C197: 3120000 | D197: 500 | E197: Hyper30p_q01_min3diffsCpG_1000win_merged195 | G197: ATP2A1 | H197: chr16 | I197: 28880502 | J197: 28881000 | K197: Hyper30p_q01_min3diffsCpG_1000win_merged934 | L197: 449 | N197: chr1 | O197: 3417501 | P197: 3423000 | Q197: 5500 | R197: Hyp30p_q01_min3diffsCpG_1000win_merged195 | T197: chr1 | U197: 161427203 | V197: 161501917 | W197: 74715 | X197: All_HCC_PMD_195
A198: chr12 | B198: 3130001 | C198: 3130500 | D198: 500 | E198: Hyper30p_q01_min3diffsCpG_1000win_merged196 | G198: SLC5A2 | H198: chr16 | I198: 31487002 | J198: 31487500 | K198: Hyper30p_q01_min3diffsCpG_1000win_merged935 | L198: -520 | N198: chr1 | O198: 3424001 | P198: 3424500 | Q198: 500 | R198: Hyp30p_q01_min3diffsCpG_1000win_merged196 | T198: chr1 | U198: 161537122 | V198: 161752175 | W198: 215054 | X198: All_HCC_PMD_196
A199: chr12 | B199: 3145001 | C199: 3145500 | D199: 500 | E199: Hyper30p_q01_min3diffsCpG_1000win_merged197 | G199: NETO2 | H199: chr16 | I199: 47142502 | J199: 47144500 | K199: Hyper30p_q01_min3diffsCpG_1000win_merged936 | L199: 0 | N199: chr1 | O199: 3426001 | P199: 3427500 | Q199: 1500 | R199: Hyp30p_q01_min3diffsCpG_1000win_merged197 | T199: chr1 | U199: 161973002 | V199: 162055197 | W199: 82196 | X199: All_HCC_PMD_197
A200: chr12 | B200: 3199501 | C200: 3201500 | D200: 2000 | E200: Hyper30p_q01_min3diffsCpG_1000win_merged198 | G200: ENSG00000277559 | H200: chr16 | I200: 54291502 | J200: 54292000 | K200: Hyper30p_q01_min3diffsCpG_1000win_merged938 | L200: 537 | N200: chr1 | O200: 3428501 | P200: 3432000 | Q200: 3500 | R200: Hyp30p_q01_min3diffsCpG_1000win_merged198 | T200: chr1 | U200: 162438184 | V200: 162500937 | W200: 62754 | X200: All_HCC_PMD_198
... 4300 more rows
